Workbook

Sheet Support (hidden)
B1: Pasirinkimas
AA2: Darbo tipai, kuriems niekada netaikomas nei garantinis sulaikymas, nei draudimas | AD2: Darbas #1 | AE2: Darbas #2
A3: PVM moketojas | B3: PVM moketojas - PVM neapmokestinama veikla (ne rangos darbai) | C3: Ne PVM moketojas - rangos darbai | D3: Ne PVM moketojas - ne rangos darbai | F3: PVM moketojasTAIP | G3: OK | H3: PVM moketojas | I3: 1.2 | J3: 1.21 | AA3: Pasirinkti darbo tipą | AB3: NE | AC3: Ar pasirinktas vienas iš šių darbo tipų? | AD3: =IF(OR(Paraiska!$B$27=Support!$AA$4,Paraiska!$B$27=Support!$AA$5,Paraiska!$B$27=Support!$AA$6,Paraiska!$B$27=Support!$AA$7,Paraiska!$B$27=Support!$AA$8,Paraiska!$B$27=Support!$AA$9,Paraiska!$B$27=Support!AA10,Paraiska!$B$27=Support!$AA$11),"TAIP","NE") -> NE | AE3: =IF(OR(Paraiska!$E$27=Support!$AA$4,Paraiska!$E$27=Support!$AA$5,Paraiska!$E$27=Support!$AA$6,Paraiska!$E$27=Support!$AA$7,Paraiska!$E$27=Support!$AA$8,Paraiska!$E$27=Support!$AA$9,Paraiska!$E$27=Support!AA10,Paraiska!$E$27=Support!$AA$11),"TAIP","NE") -> NE
A4: NE | B4: NE | C4: NE | D4: NE | F4: PVM moketojasNE | G4: OK | H4: PVM moketojas - PVM neapmokestinama veikla (ne rangos darbai) | I4: 1.2 | J4: 1.21 | AA4: Kondicionavimo sistemų papildymas šaldymo skysčiu | AB4: NE
A5: TAIP | F5: Ne PVM moketojas - rangos darbaiNE | G5: OK | H5: Ne PVM moketojas - rangos darbai | I5: =1.242 -> 1.242 | J5: 1 | AA5: Pastato konstrukcijų būklės vertinimas | AB5: NE
F6: Ne PVM moketojas - rangos darbaiTAIP | G6: NE | H6: Ne PVM moketojas - ne rangos darbai | I6: 1.5 | J6: 1 | AA6: Projektavimo darbai (išorės sienos (fasadai), balkonai, perdangos) | AB6: NE
A7: TAIP | B7: NE | C7: Minimali kaina kv.m., EUR | D7: 0.5 | F7: PVM moketojas - PVM neapmokestinama veikla (ne rangos darbai)NE | G7: OK | AA7: Projektavimo darbai (šalto vandens, buitinių ir lietaus nuotekų sistemos) | AB7: NE
A8: 12 men. (1m.) | B8: Be issimokejimo termino | C8: Minimali nemokumo riba | D8: 0.05 | F8: PVM moketojas - PVM neapmokestinama veikla (ne rangos darbai)TAIP | G8: NE | AA8: Projektavimo darbai (šildymo ir karšto vandens sistemos, šilumos punktai) | AB8: NE
A9: 18 men. (1.5m.) | F9: Ne PVM moketojas - ne rangos darbaiNE | G9: OK | AA9: Projektavimo darbai (stogai) | AB9: NE
A10: 24 men. (2m.) | F10: Ne PVM moketojas - ne rangos darbaiTAIP | G10: NE | AA10: Projektavimo darbai ( elektros tinklai ir įrenginiai) | AB10: NE
A11: 30 men. (2.5m.) | AA11: Statinių konstrukcijų techninė apžiūra, tyrimai, periodinis patikrinimas, ekspertizės | AB11: NE
A12: 36 men. (3m.) | F12: Ne PVM moketojas - ne rangos darbai VS kaupiamosios ir kiti avansai
A13: 42 men. (3.5m.) | F13: =IFERROR(IF(Paraiska!B11=Support!H6,IF(Paraiska!B9="",(Paraiska!B10+Paraiska!E10+(Paraiska!B10+Paraiska!E10)*Support!B18*1.21)/(Paraiska!B31+Paraiska!B32),(Paraiska!B9+Paraiska!E9+(Paraiska!B9+Paraiska!E9)*Support!B18*1.21)/(Paraiska!B31+Paraiska!B32)),""),"") ->  | G13: (kai <1, reiškia, kad kaupiamųjų ir kitų avansų yra daugiau nei Rangovo išrašomos sąskaitos be išsimokėjimo)
A14: 48 men. (4m.) | O14: Pirkimai | P14: CS2021P
O15: Bendra | P15: CSSE48 | R15: 0.530237581 | S15: 0.07559395248 | T15: 0.3941684665
B16: 1-5 | D16: 6 | F16: 7 | K16: 8 | R16: 1-5 | S16: 6 | T16: 7 | V16: Bendras | W16: Rėžio, į kurį patenka suma, numeris
A17: issimokejimo terminas | B17: Mokestis, % | C17: Min. mokestis, EUR | D17: Mokestis, % | E17: Min. mokestis, EUR | F17: Mokestis, % | G17: Faktoringo kaina | H17: Garantija | I17: Reiksmes | J17: Menesiai | K17: Nemokumo koef | O17: Nuo | P17: Iki | Q17: Marža | R17: Mokestis, % | S17: Mokestis, % | T17: Mokestis, %
A18: Be issimokejimo termino | B18: 0.25 | C18: 0 | D18: 0 | E18: 0 | F18: 0 | G18: 0 | H18: 0.04 | I18: NE | J18: 1 | K18: 0 | N18: 1 | O18: 1 | P18: 500 | Q18: 0.25 | R18: =Q18*$R$15 -> 0.1325593952 | S18: =Q18*$S$15 -> 0.01889848812 | T18: =Q18*$T$15 -> 0.09854211663 | V18: =IF(OR(AND(Paraiska!B$6 = 1, Paraiska!B$9=""),AND(Paraiska!B$6 = 2, Paraiska!B$9="", Paraiska!E$9="")),IF(AND(Paraiska!B$10+Paraiska!E$10>=Support!O18, Paraiska!B$10+Paraiska!E$10<=Support!P18),1,0), IF(AND(Paraiska!B$9+Paraiska!E$9>=Support!O18, Paraiska!B$9+Paraiska!E$9 <=Support!P18), 1, 0)) -> 0 | W18: =SUMPRODUCT(N18:N25, V18:V25) -> 6
A19: 12 men. (1m.) | B19: 0.13 | C19: 300 | D19: 0.02 | E19: 100 | F19: 0.05 | G19: 0.07631649127 | H19: 0.04 | I19: TAIP | J19: 12 | K19: 0.5 | N19: 2 | O19: 500 | P19: 1000 | Q19: 0.25 | R19: =Q19*$R$15 -> 0.1325593952 | S19: =Q19*$S$15 -> 0.01889848812 | T19: =Q19*$T$15 -> 0.09854211663 | V19: =IF(OR(AND(Paraiska!B$6 = 1, Paraiska!B$9=""),AND(Paraiska!B$6 = 2, Paraiska!B$9="", Paraiska!E$9="")),IF(AND(Paraiska!B$10+Paraiska!E$10>Support!O19, Paraiska!B$10+Paraiska!E$10<=Support!P19),1,0), IF(AND(Paraiska!B$9+Paraiska!E$9>Support!O19, Paraiska!B$9+Paraiska!E$9 <=Support!P19), 1, 0)) -> 0
A20: 18 men. (1.5m.) | B20: 0.121 | C20: 300 | D20: 0.02 | E20: 100 | F20: 0.071 | G20: 0.1027003479 | H20: 0.04 | I20: TAIP | J20: 18 | K20: 0.5 | N20: 3 | O20: 1000 | P20: 5000 | Q20: 0.25 | R20: 0.1325593952 | S20: 0.01889848812 | T20: 0.09854211663 | V20: =IF(OR(AND(Paraiska!B$6 = 1, Paraiska!B$9=""),AND(Paraiska!B$6 = 2, Paraiska!B$9="", Paraiska!E$9="")),IF(AND(Paraiska!B$10+Paraiska!E$10>Support!O20, Paraiska!B$10+Paraiska!E$10<=Support!P20),1,0), IF(AND(Paraiska!B$9+Paraiska!E$9>Support!O20, Paraiska!B$9+Paraiska!E$9 <=Support!P20), 1, 0)) -> 0
A21: 24 men. (2m.) | B21: 0.113 | C21: 300 | D21: 0.02 | E21: 100 | F21: 0.09 | G21: 0.1230503713 | H21: 0.04 | I21: TAIP | J21: 24 | K21: 0.5 | N21: 4 | O21: 5000 | P21: 10000 | Q21: 0.25 | R21: 0.1325593952 | S21: 0.01889848812 | T21: 0.09854211663 | V21: =IF(OR(AND(Paraiska!B$6 = 1, Paraiska!B$9=""),AND(Paraiska!B$6 = 2, Paraiska!B$9="", Paraiska!E$9="")),IF(AND(Paraiska!B$10+Paraiska!E$10>Support!O21, Paraiska!B$10+Paraiska!E$10<=Support!P21),1,0), IF(AND(Paraiska!B$9+Paraiska!E$9>Support!O21, Paraiska!B$9+Paraiska!E$9 <=Support!P21), 1, 0)) -> 0
A22: 30 men. (2.5m.) | B22: 0.104 | C22: 300 | D22: 0.02 | E22: 100 | F22: 0.108 | G22: 0.1371340651 | H22: 0.04 | I22: TAIP | J22: 30 | K22: 0.5 | N22: 5 | O22: 10000 | P22: 20000 | Q22: 0.25 | R22: 0.1325593952 | S22: 0.01889848812 | T22: =Q22*$T$15 -> 0.09854211663 | V22: =IF(OR(AND(Paraiska!B$6 = 1, Paraiska!B$9=""),AND(Paraiska!B$6 = 2, Paraiska!B$9="", Paraiska!E$9="")),IF(AND(Paraiska!B$10+Paraiska!E$10>Support!O22, Paraiska!B$10+Paraiska!E$10<=Support!P22),1,0), IF(AND(Paraiska!B$9+Paraiska!E$9>Support!O22, Paraiska!B$9+Paraiska!E$9 <=Support!P22), 1, 0)) -> 0
A23: 36 men. (3m.) | B23: 0.096 | C23: 300 | D23: 0.02 | E23: 100 | F23: 0.123 | G23: 0.1447903758 | H23: 0.04 | I23: TAIP | J23: 36 | K23: 0.5 | N23: 6 | O23: 20000 | P23: 100000 | Q23: 0.25 | R23: 0.1325593952 | S23: 0.01889848812 | T23: 0.09854211663 | V23: =IF(OR(AND(Paraiska!B$6 = 1, Paraiska!B$9=""),AND(Paraiska!B$6 = 2, Paraiska!B$9="", Paraiska!E$9="")),IF(AND(Paraiska!B$10+Paraiska!E$10>Support!O23, Paraiska!B$10+Paraiska!E$10<=Support!P23),1,0), IF(AND(Paraiska!B$9+Paraiska!E$9>Support!O23, Paraiska!B$9+Paraiska!E$9 <=Support!P23), 1, 0)) -> 1
A24: 42 men. (3.5m.) | B24: 0.088 | C24: 300 | D24: 0.02 | E24: 100 | F24: 0.138 | G24: 0.169469736 | H24: 0.04 | I24: TAIP | J24: 42 | K24: 0.5 | N24: 7 | O24: 100000 | P24: 300000 | Q24: 0.2 | R24: 0.1060475162 | S24: 0.0151187905 | T24: 0.0788336933 | V24: =IF(OR(AND(Paraiska!B$6 = 1, Paraiska!B$9=""),AND(Paraiska!B$6 = 2, Paraiska!B$9="", Paraiska!E$9="")),IF(AND(Paraiska!B$10+Paraiska!E$10>Support!O24, Paraiska!B$10+Paraiska!E$10<=Support!P24),1,0), IF(AND(Paraiska!B$9+Paraiska!E$9>Support!O24, Paraiska!B$9+Paraiska!E$9 <=Support!P24), 1, 0)) -> 0
A25: 48 men. (4m.) | B25: 0.08 | C25: 300 | D25: 0.02 | E25: 100 | F25: 0.15 | G25: 0.1944820339 | H25: 0.04 | I25: TAIP | J25: 48 | K25: 0.5 | N25: 8 | O25: 300000 | P25: ir daugiau | Q25: 0.15 | R25: 0.07953563715 | S25: 0.01133909287 | T25: 0.05912526998 | V25: =IF(OR(AND(Paraiska!B$6 = 1, Paraiska!B$9=""),AND(Paraiska!B$6 = 2, Paraiska!B$9="", Paraiska!E$9="")),IF(Paraiska!B$10+Paraiska!E$10>Support!O25,1,0), IF(Paraiska!B$9+Paraiska!E$9>Support!O25,1, 0)) -> 0
B28: Bendras
A30: Finansuotojas finansuoja rangovo saskaita | N30: 0 | O30: 1 | S30: Į kurį garantinio sulaikymo (draudimo) pasirinkimų rėžį patenka pasirinktas darbas?
N31: Taikomas garantinis sulaikymas | O31: Netaikoma | S31: =VLOOKUP(Paraiska!$B$27,'Darbu Sarasas'!$F$1:$K$55,6,FALSE) -> 0
A32: Tarpine rangovo saskaita (skirta faktoringo kainos apskaičiavimui) | B32: Suma | C32: PVM | D32: Suma su PVM | N32: Darbų garantinių trūkumų (defektų) pašalinimo draudimas
B33: =IF(OR(AND(Paraiska!B6 = 1, Paraiska!B9=""),AND(Paraiska!B6 = 2, Paraiska!B9="", Paraiska!E9="")),IF(OR(Paraiska!B11="PVM moketojas",Paraiska!B11="PVM moketojas - PVM neapmokestinama veikla (ne rangos darbai)")=TRUE,Paraiska!B10+Paraiska!E10+B45,Paraiska!B10+Paraiska!E10+D45),IF(OR(Paraiska!B11="PVM moketojas",Paraiska!B11="PVM moketojas - PVM neapmokestinama veikla (ne rangos darbai)")=TRUE,Paraiska!B9+Paraiska!E9+B45,Paraiska!B9+Paraiska!E9+D45)) -> 62500 | C33: =IF(OR(Paraiska!B11="PVM moketojas",Paraiska!B11="PVM moketojas - PVM neapmokestinama veikla (ne rangos darbai)")=TRUE,B33*0.21,0) -> 13125 | D33: =SUM(B33,C33) -> 75625
N35: Taikomas garantinis sulaikymas | O35: TAIP
B36: Suma | C36: PVM | D36: Suma su PVM | N36: Darbų garantinių trūkumų (defektų) pašalinimo draudimas | O36: NE
A37: 1 - Techninis konsultavimas del optimalaus darbu įgyvendinimo | B37: =IF(Paraiska!B35=Support!A18,IF(OR(AND(Paraiska!B6 = 1, Paraiska!B9=""),AND(Paraiska!B6 = 2, Paraiska!B9="", Paraiska!E9="")),ROUND(VLOOKUP(W18, N18:T25, 4, FALSE)*(Paraiska!B10+Paraiska!E10),2)+IF(F13<=1,0,ROUND(IF(Paraiska!B36<D8,0,Paraiska!B36*VLOOKUP(Paraiska!B35,Support!A18:K25,11,0))*(Paraiska!B10+Paraiska!E10),2)),ROUND(VLOOKUP(W18, N18:T25, 4, FALSE)*(Paraiska!B9+Paraiska!E9),2)+IF(F13<=1,0,ROUND(IF(Paraiska!B36<D8,0,Paraiska!B36*VLOOKUP(Paraiska!B35,Support!A18:K25,11,0))*(Paraiska!B9+Paraiska!E9),2))),IF(OR(AND(Paraiska!B6 = 1, Paraiska!B9=""),AND(Paraiska!B6 = 2, Paraiska!B9="", Paraiska!E9="")),ROUND(VLOOKUP(W18, N18:T25, 5, FALSE)*(Paraiska!B10+Paraiska!E10),2)+IF(F13<=1,0,ROUND(IF(Paraiska!B36<D8,0,Paraiska!B36*VLOOKUP(Paraiska!B35,Support!A18:K25,11,0))*(Paraiska!B10+Paraiska!E10),2)),ROUND(VLOOKUP(W18, N18:T25, 5, FALSE)*(Paraiska!B9+Paraiska!E9),2)+IF(F13<=1,0,ROUND(IF(Paraiska!B36<D8,0,Paraiska!B36*VLOOKUP(Paraiska!B35,Support!A18:K25,11,0))*(Paraiska!B9+Paraiska!E9),2)))) -> 6627.97 | C37: =ROUND(B37*0.21,2) -> 1391.87 | D37: =B37+C37 -> 8019.84 | N37: Netaikoma | O37: NE
A38: 2 - Projektines uzduoties parengimas, siekiant Rangovui tinkamai pateikti pirkimo pasiulyma
A39: 3 - Rangovu atliktu darbu garantiniu įsipareigojimu organizavimas
A40: 4 - Rangovu sertifikavimas (patikimu tiekeju sarasas)
A41: 5 - Marketingines, reklamines (patikimu rangovu saraso viesinimo) paslaugos
A42: 6 - Rangovu finansinio faktoringo organizavimas | B42: =IF(Paraiska!B35=Support!A18,0,IF(OR(AND(Paraiska!B6 = 1, Paraiska!B9=""),AND(Paraiska!B6 = 2, Paraiska!B9="", Paraiska!E9="")),ROUND(VLOOKUP(W18, N18:T25, 6, FALSE)*(Paraiska!B10+Paraiska!E10),2),ROUND(VLOOKUP(W18, N18:T25, 6, FALSE)*(Paraiska!B9+Paraiska!E9),2))) -> 944.92 | C42: =ROUND(B42*0.21,2) -> 198.43 | D42: =B42+C42 -> 1143.35
A43: 7 - Garantijos kastai | B43: =IF(Paraiska!B35=Support!A18,0,IF(OR(AND(Paraiska!B6 = 1, Paraiska!B9=""),AND(Paraiska!B6 = 2, Paraiska!B9="", Paraiska!E9="")),ROUND(VLOOKUP(W18, N18:T25, 7, FALSE)*(Paraiska!B10+Paraiska!E10),2),ROUND(VLOOKUP(W18, N18:T25, 7, FALSE)*(Paraiska!B9+Paraiska!E9),2))) -> 4927.11 | C43: =ROUND(B43*0.21,2) -> 1034.69 | D43: =B43+C43 -> 5961.8
A45: Daugiabučio administratoriaus israsoma saskaita (Rangovui) | B45: =SUM(B37:B43) -> 12500 | C45: =SUM(C37:C43) -> 2624.99 | D45: =SUM(D37:D43) -> 15124.99
B48: #1 Pasirinkimas
A50: Finansuotojas finansuoja rangovo saskaita
A52: Tarpine rangovo saskaita (skirta faktoringo kainos apskaičiavimui) | B52: Suma | C52: PVM | D52: Suma su PVM
B53: =IF(OR(AND(Paraiska!B6 = 1, Paraiska!B9=""),AND(Paraiska!B6 = 2, Paraiska!B9="", Paraiska!E9="")),IF(OR(Paraiska!B11="PVM moketojas",Paraiska!B11="PVM moketojas - PVM neapmokestinama veikla (ne rangos darbai)")=TRUE,Paraiska!B10+B65,Paraiska!B10+D65),IF(OR(Paraiska!B11="PVM moketojas",Paraiska!B11="PVM moketojas - PVM neapmokestinama veikla (ne rangos darbai)")=TRUE,Paraiska!B9+B65,Paraiska!B9+D65)) -> 62500 | C53: =IF(OR(Paraiska!B11="PVM moketojas",Paraiska!B11="PVM moketojas - PVM neapmokestinama veikla (ne rangos darbai)")=TRUE,B53*0.21,0) -> 13125 | D53: =SUM(B53,C53) -> 75625
B56: Suma | C56: PVM | D56: Suma su PVM
A57: 1 - Techninis konsultavimas del optimalaus darbu įgyvendinimo | B57: =IF(OR(AND(Paraiska!B6 = 1, Paraiska!B9=""),AND(Paraiska!B6 = 2, Paraiska!B9="", Paraiska!E9="")),IFERROR(B37/SUM(Paraiska!B10:G10)*Paraiska!B10,0),IFERROR(B37/SUM(Paraiska!B9:G9)*Paraiska!B9,0)) -> 6627.97 | C57: =ROUND(B57*0.21,2) -> 1391.87 | D57: =B57+C57 -> 8019.84
A58: 2 - Projektines uzduoties parengimas, siekiant Rangovui tinkamai pateikti pirkimo pasiulyma
A59: 3 - Rangovu atliktu darbu garantiniu įsipareigojimu organizavimas
A60: 4 - Rangovu sertifikavimas (patikimu tiekeju sarasas)
A61: 5 - Marketingines, reklamines (patikimu rangovu saraso viesinimo) paslaugos
A62: 6 - Rangovu finansinio faktoringo organizavimas | B62: =IF(OR(AND(Paraiska!B6 = 1, Paraiska!B9=""),AND(Paraiska!B6 = 2, Paraiska!B9="", Paraiska!E9="")),IFERROR(B42/SUM(Paraiska!B10:G10)*Paraiska!B10,0),IFERROR(B42/SUM(Paraiska!B9:G9)*Paraiska!B9,0)) -> 944.92 | C62: =ROUND(B62*0.21,2) -> 198.43 | D62: =B62+C62 -> 1143.35
A63: 7 - Garantijos kastai | B63: =IF(OR(AND(Paraiska!B6 = 1, Paraiska!B9=""),AND(Paraiska!B6 = 2, Paraiska!B9="", Paraiska!E9="")),IFERROR(B43/SUM(Paraiska!B10:G10)*Paraiska!B10,0),IFERROR(B43/SUM(Paraiska!B9:G9)*Paraiska!B9,0)) -> 4927.11 | C63: =ROUND(B63*0.21,2) -> 1034.69 | D63: =B63+C63 -> 5961.8
A65: Daugiabučio administratoriaus israsoma saskaita (Rangovui) | B65: =SUM(B57:B63) -> 12500 | C65: =SUM(C57:C63) -> 2624.99 | D65: =SUM(D57:D63) -> 15124.99
B68: #2 Pasirinkimas
A70: Finansuotojas finansuoja rangovo saskaita
A72: Tarpine rangovo saskaita (skirta faktoringo kainos apskaičiavimui) | B72: Suma | C72: PVM | D72: Suma su PVM
B73: =IF(OR(AND(Paraiska!B6 = 1, Paraiska!B9=""),AND(Paraiska!B6 = 2, Paraiska!B9="", Paraiska!E9="")),IF(OR(Paraiska!B11="PVM moketojas",Paraiska!B11="PVM moketojas - PVM neapmokestinama veikla (ne rangos darbai)")=TRUE,Paraiska!E10+B86,Paraiska!E10+D86),IF(OR(Paraiska!B11="PVM moketojas",Paraiska!B11="PVM moketojas - PVM neapmokestinama veikla (ne rangos darbai)")=TRUE,Paraiska!E9+B86,Paraiska!E9+D86)) -> 0 | C73: =IF(OR(Paraiska!B11="PVM moketojas",Paraiska!B11="PVM moketojas - PVM neapmokestinama veikla (ne rangos darbai)")=TRUE,B73*0.21,0) -> 0 | D73: =SUM(B73,C73) -> 0
B77: Suma | C77: PVM | D77: Suma su PVM
A78: 1 - Techninis konsultavimas del optimalaus darbu įgyvendinimo | B78: =B37-B57 -> 0 | C78: =C37-C57 -> 0 | D78: =B78+C78 -> 0
A79: 2 - Projektines uzduoties parengimas, siekiant Rangovui tinkamai pateikti pirkimo pasiulyma | D79: =B79+C79 -> 0
A80: 3 - Rangovu atliktu darbu garantiniu įsipareigojimu organizavimas | D80: 0
A81: 4 - Rangovu sertifikavimas (patikimu tiekeju sarasas) | D81: 0
A82: 5 - Marketingines, reklamines (patikimu rangovu saraso viesinimo) paslaugos | D82: 0
A83: 6 - Rangovu finansinio faktoringo organizavimas | B83: =B42-B62 -> 0 | C83: =C42-C62 -> 0 | D83: =B83+C83 -> 0
A84: 7 - Garantijos kastai | B84: =B43-B63 -> 0 | C84: =C43-C63 -> 0 | D84: =B84+C84 -> 0
A86: Daugiabučio administratoriaus israsoma saskaita (Rangovui) | B86: =SUM(B78:B84) -> 0 | C86: =SUM(C78:C84) -> 0 | D86: =SUM(D78:D84) -> 0
A89: Įmoniu sarasas
A90: Pasirinkti administratoriaus pavadinimą
A91: UAB „Mano Bustas Alytus“
A92: UAB „Mano Bustas Aukstaitija“
A93: UAB „Mano Bustas Dainava“
A94: UAB „Mano Bustas Baltija“
A95: UAB „Mano Bustas Sostine“
A96: UAB „Mano Bustas NPC“
A97: UAB „Mano Bustas Vilnius“
A98: UAB „Mano Bustas Radviliskis“
A99: UAB „Mano Bustas Siauliai“
A100: UAB „Mano Bustas Vakarai“
A101: UAB „Mano Bustas Klaipeda“
A102: UAB „Mano Bustas Neris“
A103: UAB „Mano Bustas Kaunas“
A104: UAB „Merlangas“
A105: UAB „Mano Busto Prieziura“
B118: Papildoma informacija apskaičiuoti išsimokėjimo terminą pagal prognozuojamą kainą
B120: Bendras
A122: Finansuotojas finansuoja rangovo saskaita
A124: Tarpine rangovo saskaita (skirta faktoringo kainos apskaičiavimui) | B124: Suma | C124: PVM | D124: Suma su PVM
B125: =IF(OR(Paraiska!B11="PVM moketojas",Paraiska!B11="PVM moketojas - PVM neapmokestinama veikla (ne rangos darbai)")=TRUE,Paraiska!B10+Paraiska!E10+B137,Paraiska!B10+Paraiska!E10+D137) -> 62500 | C125: =IF(OR(Paraiska!B11="PVM moketojas",Paraiska!B11="PVM moketojas - PVM neapmokestinama veikla (ne rangos darbai)")=TRUE,B125*0.21,0) -> 13125 | D125: =SUM(B125,C125) -> 75625
B128: Suma | C128: PVM | D128: Suma su PVM
A129: 1 - Techninis konsultavimas del optimalaus darbu įgyvendinimo | B129: =IF(Paraiska!B35=Support!A18,ROUND(VLOOKUP(W18, N18:T25, 4, FALSE)*(Paraiska!B10+Paraiska!E10),2)+IF(F13<=1,0,ROUND(IF(Paraiska!B36<D8,0,Paraiska!B36*VLOOKUP(Paraiska!B35,Support!A18:K25,11,0))*(Paraiska!B10+Paraiska!E10),2)),ROUND(VLOOKUP(W18, N18:T25, 5, FALSE)*(Paraiska!B10+Paraiska!E10),2)+IF(F13<=1,0,ROUND(IF(Paraiska!B36<D8,0,Paraiska!B36*VLOOKUP(Paraiska!B35,Support!A18:K25,11,0))*(Paraiska!B10+Paraiska!E10),2))) -> 6627.97 | C129: =ROUND(B129*0.21,2) -> 1391.87 | D129: =B129+C129 -> 8019.84
A130: 2 - Projektines uzduoties parengimas, siekiant Rangovui tinkamai pateikti pirkimo pasiulyma
A131: 3 - Rangovu atliktu darbu garantiniu įsipareigojimu organizavimas
A132: 4 - Rangovu sertifikavimas (patikimu tiekeju sarasas)
A133: 5 - Marketingines, reklamines (patikimu rangovu saraso viesinimo) paslaugos
A134: 6 - Rangovu finansinio faktoringo organizavimas | B134: =IF(Paraiska!B35=Support!A18,0,ROUND(VLOOKUP(W18, N18:T25, 6, FALSE)*(Paraiska!B10+Paraiska!E10),2)) -> 944.92 | C134: =ROUND(B134*0.21,2) -> 198.43 | D134: =B134+C134 -> 1143.35
A135: 7 - Garantijos kastai | B135: =IF(Paraiska!B35=Support!A18,0,ROUND(VLOOKUP(W18, N18:T25, 7, FALSE)*(Paraiska!B10+Paraiska!E10),2)) -> 4927.11 | C135: =ROUND(B135*0.21,2) -> 1034.69 | D135: =B135+C135 -> 5961.8
A137: Daugiabučio administratoriaus israsoma saskaita (Rangovui) | B137: =SUM(B129:B135) -> 12500 | C137: =SUM(C129:C135) -> 2624.99 | D137: =SUM(D129:D135) -> 15124.99
B140: #1 Pasirinkimas
A142: Finansuotojas finansuoja rangovo saskaita
A144: Tarpine rangovo saskaita (skirta faktoringo kainos apskaičiavimui) | B144: Suma | C144: PVM | D144: Suma su PVM
B145: =IF(OR(Paraiska!B11="PVM moketojas",Paraiska!B11="PVM moketojas - PVM neapmokestinama veikla (ne rangos darbai)")=TRUE,Paraiska!B10+B157,Paraiska!B10+D157) -> 62500 | C145: =IF(OR(Paraiska!B11="PVM moketojas",Paraiska!B11="PVM moketojas - PVM neapmokestinama veikla (ne rangos darbai)")=TRUE,B145*0.21,0) -> 13125 | D145: =SUM(B145,C145) -> 75625
B148: Suma | C148: PVM | D148: Suma su PVM
A149: 1 - Techninis konsultavimas del optimalaus darbu įgyvendinimo | B149: =IFERROR(B129/SUM(Paraiska!B10:G10)*Paraiska!B10,0) -> 6627.97 | C149: =ROUND(B149*0.21,2) -> 1391.87 | D149: =B149+C149 -> 8019.84
A150: 2 - Projektines uzduoties parengimas, siekiant Rangovui tinkamai pateikti pirkimo pasiulyma
A151: 3 - Rangovu atliktu darbu garantiniu įsipareigojimu organizavimas
A152: 4 - Rangovu sertifikavimas (patikimu tiekeju sarasas)
A153: 5 - Marketingines, reklamines (patikimu rangovu saraso viesinimo) paslaugos
A154: 6 - Rangovu finansinio faktoringo organizavimas | B154: =IFERROR(B134/SUM(Paraiska!B10:G10)*Paraiska!B10,0) -> 944.92 | C154: =ROUND(B154*0.21,2) -> 198.43 | D154: =B154+C154 -> 1143.35
A155: 7 - Garantijos kastai | B155: =IFERROR(B135/SUM(Paraiska!B10:G10)*Paraiska!B10,0) -> 4927.11 | C155: =ROUND(B155*0.21,2) -> 1034.69 | D155: =B155+C155 -> 5961.8
A157: Daugiabučio administratoriaus israsoma saskaita (Rangovui) | B157: =SUM(B149:B155) -> 12500 | C157: =SUM(C149:C155) -> 2624.99 | D157: =SUM(D149:D155) -> 15124.99
B160: #2 Pasirinkimas
A162: Finansuotojas finansuoja rangovo saskaita
A164: Tarpine rangovo saskaita (skirta faktoringo kainos apskaičiavimui) | B164: Suma | C164: PVM | D164: Suma su PVM
B165: =IF(OR(Paraiska!B11="PVM moketojas",Paraiska!B11="PVM moketojas - PVM neapmokestinama veikla (ne rangos darbai)")=TRUE,Paraiska!E10+B178,Paraiska!E10+D178) -> 0 | C165: =IF(OR(Paraiska!B11="PVM moketojas",Paraiska!B11="PVM moketojas - PVM neapmokestinama veikla (ne rangos darbai)")=TRUE,B165*0.21,0) -> 0 | D165: =SUM(B165,C165) -> 0
B169: Suma | C169: PVM | D169: Suma su PVM
A170: 1 - Techninis konsultavimas del optimalaus darbu įgyvendinimo | B170: =B129-B149 -> 0 | C170: =C129-C149 -> 0 | D170: =B170+C170 -> 0
A171: 2 - Projektines uzduoties parengimas, siekiant Rangovui tinkamai pateikti pirkimo pasiulyma | D171: =B171+C171 -> 0
A172: 3 - Rangovu atliktu darbu garantiniu įsipareigojimu organizavimas | D172: 0
A173: 4 - Rangovu sertifikavimas (patikimu tiekeju sarasas) | D173: 0
A174: 5 - Marketingines, reklamines (patikimu rangovu saraso viesinimo) paslaugos | D174: 0
A175: 6 - Rangovu finansinio faktoringo organizavimas | B175: =B134-B154 -> 0 | C175: =C134-C154 -> 0 | D175: =B175+C175 -> 0
A176: 7 - Garantijos kastai | B176: =B135-B155 -> 0 | C176: =C135-C155 -> 0 | D176: =B176+C176 -> 0
A178: Daugiabučio administratoriaus israsoma saskaita (Rangovui) | B178: =SUM(B170:B176) -> 0 | C178: =SUM(C170:C176) -> 0 | D178: =SUM(D170:D176) -> 0
A181: Ar darbams suteikiamas išsimokėjimo terminas? | B181: =IFERROR(IF(ROUND((IF(OR(Paraiska!$B$11="PVM moketojas",Paraiska!$B$11="PVM moketojas - PVM neapmokestinama veikla (ne rangos darbai)"),Paraiska!$B$10*1.21+Paraiska!$E$10*1.21,Paraiska!$B$10+Paraiska!$E$10)*VLOOKUP(Paraiska!$B$11,Support!$H$3:'Support'!$I$6,2,0)-Paraiska!$B$31-Paraiska!$B$32)/Paraiska!$B$28,2)>=Paraiska!$B$33,"TAIP","NE"),"NE") -> TAIP
B185: REZULTATAS
B187: RANGOVO ISRASOMA SASKAITA (UZSAKOVUI)
A188: Suma be PVM | B188: =IF(Paraiska!B47="FORMOJE YRA KLAIDŲ, PRAŠOME PATIKRINTI ĮVESTAS REIKŠMES",0,IF(OR(Paraiska!B11="PVM moketojas",Paraiska!B11="PVM moketojas - PVM neapmokestinama veikla (ne rangos darbai)")=TRUE,Paraiska!B10+Support!B157+Support!B200,Paraiska!B10+Support!D157+Support!B202)) -> 73449.77 | E188: =IF(Paraiska!B47="FORMOJE YRA KLAIDŲ, PRAŠOME PATIKRINTI ĮVESTAS REIKŠMES",0,IF(OR(Paraiska!B11="PVM moketojas",Paraiska!B11="PVM moketojas - PVM neapmokestinama veikla (ne rangos darbai)")=TRUE,Paraiska!E10+Support!B178+Support!E200,Paraiska!E10+Support!D178+Support!E202)) -> 0
A189: PVM | B189: =ROUND(IF(Paraiska!B11="PVM moketojas",Support!B188*0.21,0),2) -> 15424.45 | E189: =ROUND(IF(Paraiska!B11="PVM moketojas",Support!E188*0.21,0),2) -> 0
A190: Suma su PVM | B190: =SUM(Support!B188,Support!B189) -> 88874.22 | E190: =SUM(Support!E188,Support!E189) -> 0
B193: UZSAKOVO ISRASOMA SASKAITA (RANGOVUI)
A194: Suma be PVM | B194: =IF(Paraiska!B47="FORMOJE YRA KLAIDŲ, PRAŠOME PATIKRINTI ĮVESTAS REIKŠMES",0,Support!B157) -> 12500 | E194: =IF(Paraiska!B47="FORMOJE YRA KLAIDŲ, PRAŠOME PATIKRINTI ĮVESTAS REIKŠMES",0,Support!B178) -> 0
A195: PVM | B195: =IF(Paraiska!B47="FORMOJE YRA KLAIDŲ, PRAŠOME PATIKRINTI ĮVESTAS REIKŠMES",0,Support!C157) -> 2624.99 | E195: =IF(Paraiska!B47="FORMOJE YRA KLAIDŲ, PRAŠOME PATIKRINTI ĮVESTAS REIKŠMES",0,Support!C178) -> 0
A196: Suma su PVM | B196: =SUM(Support!B194:'Support'!B195) -> 15124.99 | E196: =SUM(Support!E194,Support!E195) -> 0
B199: FAKTORINGO SANAUDOS
A200: Suma be PVM | B200: =IFERROR(ROUND((Support!D145-(((Paraiska!B31+Paraiska!B32)/SUM(Paraiska!B10:'Paraiska'!G10))*Paraiska!B10))*Paraiska!B37,2),0) -> 10949.77 | E200: =IF(Paraiska!E10=0,0,ROUND(((Support!D145+Support!D165)-Paraiska!B31-Paraiska!B32)*Paraiska!B37,2)-Support!B200) -> 0
A201: PVM | B201: =ROUND(Support!B200*0.21,2) -> 2299.45 | E201: =IF(Paraiska!E10=0,0,ROUND((Support!D145+Support!D165-Paraiska!B31-Paraiska!B32)*Paraiska!B37*0.21,2)-Support!B201) -> 0
A202: Faktoringo sąnaudos | B202: =SUM(Support!B200,Support!B201) -> 13249.22 | E202: =SUM(Support!E200,Support!E201) -> 0
B205: KONKURSINE KAINA
A206: Suma be PVM | B206: =Support!B188 -> 73449.77 | E206: =Support!E188 -> 0
A207: PVM | B207: =ROUND(IF(Paraiska!B11="Ne PVM moketojas - rangos darbai",0,Support!B188*0.21),2) -> 15424.45 | E207: =ROUND(IF(Paraiska!B11="Ne PVM moketojas - rangos darbai",0,Support!E188*0.21),2) -> 0
A208: Suma su PVM | B208: =SUM(Support!B206,Support!B207) -> 88874.22 | E208: =SUM(Support!E206,Support!E207) -> 0
A214: PAPILDOMA INFORMACIJA UŽSAKOVUI:
A215: Gyventojams išrašomos sąskaitos faktūros | B215: Suma | C215: PVM | D215: Suma su PVM
A216: Už visą laikotarpį - KONKURSINĖ KAINA | B216: =SUM(Support!B188:G188) -> 73449.77 | C216: =ROUND(IF(Paraiska!B11="Ne PVM moketojas - rangos darbai",0,SUM(Support!B188:G188)*0.21),2) -> 15424.45 | D216: =SUM(Support!B216,Support!C216) -> 88874.22
A217: Kaupiamųjų ir kitų lėšų panaudojimas | B217: =ROUND(IF(Support!C216>0,((Paraiska!B31+Paraiska!B32)/1.21),Paraiska!B31+Paraiska!B32),2) -> 0 | C217: =Paraiska!D100-Paraiska!B100 -> 0 | D217: =Paraiska!B31+Paraiska!B32 -> 0
A218: Likusi mokėtina suma (Konkursinė kaina minus kaupiamosios ir kitos iš anksto panaudotos lėšos) | B218: =Support!B216-Support!B217 -> 73449.77 | C218: =Support!C216-Support!C217 -> 15424.45 | D218: =Support!D216-Support!D217 -> 88874.22
A219: Skaičiuojama įvertinus kaupiamąsias lėšas:
A220: Už vieną mėnesį (namui) | B220: =Support!B218/VLOOKUP(Paraiska!B35,Support!$A$18:'Support'!$J$25,10,0) -> 2040.271389 | C220: =Support!C218/VLOOKUP(Paraiska!B35,Support!$A$18:'Support'!$J$25,10,0) -> 428.4569444 | D220: =Support!D218/VLOOKUP(Paraiska!B35,Support!$A$18:'Support'!$J$25,10,0) -> 2468.728333
A221: Suma vienam kv. m. už visą laikotarpį | B221: =Support!B218/Paraiska!B28 -> 12.95440107 | C221: =Support!C218/Paraiska!B28 -> 2.720423925 | D221: =Support!D218/Paraiska!B28 -> 15.674825
A222: Suma vienam kv. m. per vieną mėnesį | B222: =Support!B220/Paraiska!B28 -> 0.3598444742 | C222: =Support!C220/Paraiska!B28 -> 0.07556733125 | D222: =Support!D220/Paraiska!B28 -> 0.4354118054
A223: Suma vidutinio dydžio patalpai (butui) už visą laikotarpį | B223: =IFERROR(Support!B218/Paraiska!B30,0) -> 844.2502299 | C223: =IFERROR(Support!C218/Paraiska!B30,0) -> 177.2925287 | D223: =IFERROR(Support!D218/Paraiska!B30,0) -> 1021.542759
A224: Suma vidutinio dydžio patalpai (butui) per vieną mėnesį | B224: =IFERROR(Support!B220/Paraiska!B30,0) -> 23.45139527 | C224: =IFERROR(Support!C220/Paraiska!B30,0) -> 4.924792465 | D224: =IFERROR(Support!D220/Paraiska!B30,0) -> 28.37618774
B228: Darbų antkainis
A230: Pardavimo kaina klientams, Eur | G230: Rangovo siūlomos sumos riba, EUR be PVM, kada paskaičiuojamas standartinis kominsinių tarimas
A231: Darbų savikaina, Eur be PVM >= | B231: =MAX(G232:H238) -> 5000 | D231: nemokumas | E231: =IF(Paraiska!B36>10%,10%,Paraiska!B36) -> 0 | G231: 1-5 | H231: 6
G232: =ROUND(C19/B19,2) -> 2307.69 | H232: =E19/D19 -> 5000
B233: PVM-PVM | C233: nePVM-PVM | D233: nePVM-nePVM | E233: nePVM-PVM | G233: =ROUND(C20/B20,2) -> 2479.34 | H233: =E20/D20 -> 5000
A234: 12 men. (1m.) | B234: =$B$231*1.21+(IF($B$231*B19<C19,C19,$B$231*B19)+IF($B$231*D19<E19,E19,$B$231*D19)+$B$231*F19+$B$231*$E$231*K19)*1.21+(($B$231+IF($B$231*B19<C19,C19,$B$231*B19)+IF($B$231*D19<E19,E19,$B$231*D19)+$B$231*F19+$B$231*$E$231*K19)*1.21*G19)*1.21 -> 7930.409849 | C234: =$B$231*1.21+(IF($B$231*B19<C19,C19,$B$231*B19)+IF($B$231*D19<E19,E19,$B$231*D19)+$B$231*F19+$B$231*$E$231*K19)*1.21+(($B$231+IF($B$231*B19<C19,C19,$B$231*B19)+IF($B$231*D19<E19,E19,$B$231*D19)+$B$231*F19+$B$231*$E$231*K19)*1.21*G19)*1.21 -> 7930.409849 | D234: =$B$231+(IF($B$231*B19<C19,C19,$B$231*B19)+IF($B$231*D19<E19,E19,$B$231*D19)+$B$231*F19+$B$231*$E$231*K19)*1.21+(($B$231+(IF($B$231*B19<C19,C19,$B$231*B19)+IF($B$231*D19<E19,E19,$B$231*D19)+$B$231*F19+$B$231*$E$231*K19)*1.21)*G19)*1.21 -> 6783.449747 | E234: =($B$231+(IF($B$231*B19<C19,C19,$B$231*B19)+IF($B$231*D19<E19,E19,$B$231*D19)+$B$231*F19+$B$231*$E$231*K19)*1.21+(($B$231+(IF($B$231*B19<C19,C19,$B$231*B19)+IF($B$231*D19<E19,E19,$B$231*D19)+$B$231*F19+$B$231*$E$231*K19)*1.21)*G19)*1.21)*1.21 -> 8207.974194 | G234: 2654.87 | H234: 5000
A235: 18 men. (1.5m.) | B235: =$B$231*1.21+(IF($B$231*B20<C20,C20,$B$231*B20)+IF($B$231*D20<E20,E20,$B$231*D20)+$B$231*F20+$B$231*$E$231*K20)*1.21+(($B$231+IF($B$231*B20<C20,C20,$B$231*B20)+IF($B$231*D20<E20,E20,$B$231*D20)+$B$231*F20+$B$231*$E$231*K20)*1.21*G20)*1.21 -> 8243.803291 | C235: =$B$231*1.21+(IF($B$231*B20<C20,C20,$B$231*B20)+IF($B$231*D20<E20,E20,$B$231*D20)+$B$231*F20+$B$231*$E$231*K20)*1.21+(($B$231+IF($B$231*B20<C20,C20,$B$231*B20)+IF($B$231*D20<E20,E20,$B$231*D20)+$B$231*F20+$B$231*$E$231*K20)*1.21*G20)*1.21 -> 8243.803291 | D235: =$B$231+(IF($B$231*B20<C20,C20,$B$231*B20)+IF($B$231*D20<E20,E20,$B$231*D20)+$B$231*F20+$B$231*$E$231*K20)*1.21+(($B$231+(IF($B$231*B20<C20,C20,$B$231*B20)+IF($B$231*D20<E20,E20,$B$231*D20)+$B$231*F20+$B$231*$E$231*K20)*1.21)*G20)*1.21 -> 7063.322499 | E235: =($B$231+(IF($B$231*B20<C20,C20,$B$231*B20)+IF($B$231*D20<E20,E20,$B$231*D20)+$B$231*F20+$B$231*$E$231*K20)*1.21+(($B$231+(IF($B$231*B20<C20,C20,$B$231*B20)+IF($B$231*D20<E20,E20,$B$231*D20)+$B$231*F20+$B$231*$E$231*K20)*1.21)*G20)*1.21)*1.21 -> 8546.620223 | G235: 2884.62 | H235: 5000
A236: 24 men. (2m.) | B236: 8500.816467 | C236: 8500.816467 | D236: 7294.48097 | E236: 8826.321974 | G236: 3125 | H236: 5000
A237: 30 men. (2.5m.) | B237: 8690.392385 | C237: 8690.392385 | D237: 7466.163556 | E237: 9034.057903 | G237: 3409.09 | H237: 5000
A238: 36 men. (3m.) | B238: 8809.213115 | C238: 8809.213115 | D238: 7575.256942 | E238: 9166.0609 | G238: =ROUND(C25/B25,2) -> 3750 | H238: 5000
A239: 42 men. (3.5m.) | B239: 9084.091591 | C239: 9084.091591 | D239: 7818.780291 | E239: 9460.724152
A240: 48 men. (4m.) | B240: 9342.132162 | C240: 9342.132162 | D240: 8045.042738 | E240: 9734.501713
A242: Darbų pabrangimas, %
B243: PVM-PVM | C243: nePVM-PVM | D243: nePVM-nePVM | E243: nePVM-PVM
A244: 12 men. (1m.) | B244: =(B234-$B$231*1.21)/($B$231*1.21) -> 0.3108115453 | C244: =(C234-$B$231)/($B$231) -> 0.5860819698 | D244: =(D234-$B$231)/($B$231) -> 0.3566899494 | E244: =(E234-$B$231)/($B$231) -> 0.6415948388
A245: 18 men. (1.5m.) | B245: =(B235-$B$231*1.21)/($B$231*1.21) -> 0.3626121141 | C245: =(C235-$B$231)/($B$231) -> 0.6487606581 | D245: =(D235-$B$231)/($B$231) -> 0.4126644997 | E245: 0.7093240447
A246: 24 men. (2m.) | B246: 0.4050936309 | C246: 0.7001632934 | D246: 0.4588961941 | E246: 0.7652643948
A247: 30 men. (2.5m.) | B247: 0.4364284935 | C247: 0.7380784771 | D247: 0.4932327112 | E247: 0.8068115805
A248: 36 men. (3m.) | B248: 0.4560682834 | C248: 0.761842623 | D248: 0.5150513885 | E248: 0.8332121801
A249: 42 men. (3.5m.) | B249: 0.5015027422 | C249: 0.8168183181 | D249: 0.5637560582 | E249: 0.8921448304
A250: 48 men. (4m.) | B250: 0.5441540763 | C250: 0.8684264324 | D250: 0.6090085476 | E250: 0.9469003425
A254: Faktinis antkainis iš Paraiška | B254: =IF(OR(AND(Paraiska!B6 = 1, Paraiska!B9=""),AND(Paraiska!B6 = 2, Paraiska!B9="", Paraiska!E9="")),IFERROR(IF(Paraiska!B11="PVM moketojas", (Paraiska!D99-(Paraiska!B10+Paraiska!E10)*1.21)/((Paraiska!B10+Paraiska!E10)*1.21),(Paraiska!D99-(Paraiska!B10+Paraiska!E10))/(Paraiska!B10+Paraiska!E10)),0),IFERROR(IF(Paraiska!B11="PVM moketojas", (Paraiska!D99-(Paraiska!B9+Paraiska!E9)*1.21)/((Paraiska!B9+Paraiska!E9)*1.21),(Paraiska!D99-(Paraiska!B9+Paraiska!E9))/(Paraiska!B9+Paraiska!E9)),0)) -> 0.4689953719 | D254: Faktinio ir standartinio antkainio skirtumas | E254: =ROUND(IF(OR(AND(Paraiska!B6=1,Paraiska!B9=""),AND(Paraiska!B6=2,Paraiska!B9="",Paraiska!E9="")),IFERROR(IF(Paraiska!B11="PVM moketojas",(Paraiska!D99-(Paraiska!B10+Paraiska!E10)*1.21)/((Paraiska!B10+Paraiska!E10)*1.21),(Paraiska!D99-(Paraiska!B10+Paraiska!E10))/(Paraiska!B10+Paraiska!E10)),0),IFERROR(IF(Paraiska!B11="PVM moketojas",(Paraiska!D99-(Paraiska!B9+Paraiska!E9)*1.21)/((Paraiska!B9+Paraiska!E9)*1.21),(Paraiska!D99-(Paraiska!B9+Paraiska!E9))/(Paraiska!B9+Paraiska!E9)),0))-IFERROR(IF(Paraiska!B11="PVM moketojas",VLOOKUP(Paraiska!B35,Support!$A$244:$E$250,2,FALSE),IF(Paraiska!B11="PVM moketojas - PVM neapmokestinama veikla (ne rangos darbai)",VLOOKUP(Paraiska!B35,Support!$A$244:$E$250,3,FALSE),IF(Paraiska!B11="Ne PVM moketojas - rangos darbai",VLOOKUP(Paraiska!B35,Support!$A$244:$E$250,4,FALSE),IF(Paraiska!B11="Ne PVM moketojas - ne rangos darbai",VLOOKUP(Paraiska!B35,Support!$A$244:$E$250,5,FALSE))))),0),0) -> 0

Sheet Paraiska
B1: Pildomi laukai
A4: PRADZIA | B4: PILDOMA INDORMACIJA | I4: PILDOMA INDORMACIJA | V4: X
A5: AR PAGEIDAUJAMA GAUTI IŠSIMOKĖJIMĄ DARBAMS? | B5: TAIP
A6: Įveskite skirtingų atliekamų darbų skaičių (skirtingų mišrių PVM arba garantijos taikymas) | B6: 1
B7: RANGOVO INFORMACIJA | I7: RANGOVO INFORMACIJA | Q7: v20240301_V
E8: Darbas #2 | I8: Darbas #1 ir Darbas #2
A9: Rangovo siūloma suma, EUR be PVM | I9: =IF(SUM(B9:G9)=0,"",SUM(B9:G9)) -> 
A10: Prognozuojama Rangovo siūloma suma, EUR be PVM | B10: 50000 | I10: =IF(SUM(B10:G10)=0,"",SUM(B10:G10)) -> 50000
A11: Darbų vykdytojo PVM mokėtojo statusas | B11: PVM moketojas | I11: =B11 -> PVM moketojas
A12: Ar taikomas atvirkštinis PVM? Reikšmė NE arba TAIP (galima tik kai rangovas yra PVM mokėtojas) | B12: =IFERROR(IF(OR(B11="PVM moketojas - PVM neapmokestinama veikla (ne rangos darbai)",B11="Ne PVM moketojas - rangos darbai",B11="Ne PVM moketojas - ne rangos darbai"),"NE",IF(VLOOKUP(B27,'Darbu Sarasas'!$F$1:$H$55,3,FALSE)="Taikomas APVM","TAIP","NE")),"TAIP") -> TAIP | C12: =OFFSET(Support!$A$3,1,MATCH($B$11,Support!$A$3:'Support'!$D$3,0)-1,1,1) -> NE | D12: =OFFSET(Support!$A$3,1,MATCH($B$11,Support!$A$3:'Support'!$D$3,0)-1,1,1) -> NE | E12: =IFERROR(IF(OR(B11="PVM moketojas - PVM neapmokestinama veikla (ne rangos darbai)",B11="Ne PVM moketojas - rangos darbai",B11="Ne PVM moketojas - ne rangos darbai"),"NE",IF(VLOOKUP(E27,'Darbu Sarasas'!$F$1:$H$53,3,FALSE)="Taikomas APVM","TAIP","NE")),"TAIP") -> NE | F12: =OFFSET(Support!$A$3,1,MATCH($B$11,Support!$A$3:'Support'!$D$3,0)-1,1,1) -> NE | G12: =OFFSET(Support!$A$3,1,MATCH($B$11,Support!$A$3:'Support'!$D$3,0)-1,1,1) -> NE | I12: =IF(OR(B12="TAIP",E12="TAIP")=TRUE,"TAIP","NE") -> TAIP
A13: Rangovo tipas | B13: Ne PortalPRO
B14: =OFFSET(Support!$A$3,1,MATCH($B$11,Support!$A$3:'Support'!$D$3,0)-1,1,1) -> NE | C14: =OFFSET(Support!$A$7,1,MATCH($D$15,Support!$A$7:'Support'!$B$7,0)-1,1,1) -> 12 men. (1m.) | D14: =Support!$D$7 -> 0.5
B15: =IF(VLOOKUP(B11&B12,Support!F3:'Support'!G10,2,FALSE)="OK","","KLAIDA: Atvirkštinį PVM galima rinktis tik tuo atveju, jei rangovas yra PVM mokėtojas") ->  | C15: =Support!D220/$B$28 -> 0.4354118054 | D15: =IFERROR(IF(ROUND((IF(OR($B$11="PVM moketojas",$B$11="PVM moketojas - PVM neapmokestinama veikla (ne rangos darbai)"),$B$10*1.21+$E$10*1.21,$B$10+$E$10)*VLOOKUP($B$11,Support!$H$3:'Support'!$I$6,2,0)-$B$31-$B$32)/$B$28,2)>=$B$33,"TAIP","NE"),"NE") -> TAIP
B16: =IF(VLOOKUP(B11&E12,Support!F3:'Support'!G10,2,FALSE)="OK","","KLAIDA: Atvirkštinį PVM galima rinktis tik tuo atveju, jei rangovas yra PVM mokėtojas") ->  | D16: =IF($B$35="Be issimokejimo termino","NE","TAIP") -> TAIP
B20: UZSAKOVO INFORMACIJA | I20: UŽSAKOVO INFORMACIJA
A21: Administratoriaus pavadinimas | B21: UAB „Mano Bustas NPC“ | I21: =IF(B21=0,"",B21) -> UAB „Mano Bustas NPC“
A22: Iniciatorius | B22: Laura Petrulė | I22: =IF(B22=0,"",B22) -> Laura Petrulė
A23: Unikalus pranešimo numeris | B23: V24-0083440-4 | I23: =IF(B23="","",B23) -> V24-0083440-4
A24: Namo valdymo forma | B24: Bendrija | I24: =IF(B24=0,"",B24) -> Bendrija
A25: Namo adresas | B25: Linkmenų 5/66 | I25: =IF(B25=0,"",B25) -> Linkmenų 5/66
A26: Darbо tipo grupė | B26: =IF(B27="Pasirinkti darbo tipą","",VLOOKUP(B27,'Darbu Sarasas'!$F$1:$G$55,2,FALSE)) -> Stogai | E26: =IF(E27="Pasirinkti darbo tipą","",VLOOKUP(E27,'Darbu Sarasas'!$F$1:$G$53,2,FALSE)) ->  | I26: =B26 -> Stogai
A27: Darbо tipas | B27: Prilydomos stogo dangos keitimas, apšiltinimas | E27: Pasirinkti darbo tipą | I27: =IF(B27="","",B27) -> Prilydomos stogo dangos keitimas, apšiltinimas
A28: Naudingas namo/laiptinės plotas, kv. m | B28: 5669.87 | I28: =B28 -> 5669.87
A29: Iš jo naudingas namo/laiptinės plotas kv. m, tenkantis jur. klientams | I29: =B29 -> 0
A30: Namo/laiptinės butų skaičius, vnt. | B30: 87 | I30: =IF(B30=0,"",B30) -> 87
A31: =IF(B5="NE","Panaudojamos kaupiamosios lėšos ir kitos iš anksto sumokamos sumos, Eur", "Panaudojama kaupiamųjų lėšų suma") -> Panaudojama kaupiamųjų lėšų suma | B31: 0 | I31: =IF(B31=0,"",B31) -> 
A32: Panaudojamos kitos iš anksto sumokamos sumos, Eur | B32: 0 | I32: =IF(B32=0,"",B32) -> 
A33: Minimali darbų kaina vienam kv.m. taikant išsimokėjimą | B33: 1.5 | I33: 1.5
A34: Ar darbams suteikiamas išsimokėjimo terminas? | B34: =IFERROR(IF(ROUND((IF(OR($B$11="PVM moketojas",$B$11="PVM moketojas - PVM neapmokestinama veikla (ne rangos darbai)"),$B$10*1.21+$E$10*1.21,$B$10+$E$10)*VLOOKUP($B$11,Support!$H$3:'Support'!$I$6,2,0)-$B$31-$B$32)/$B$28,2)>=$B$33,"TAIP","NE"),"NE") -> TAIP | C34: =IFERROR(IF(ROUND((IF(OR($B$11="PVM moketojas",$B$11="PVM moketojas - PVM neapmokestinama veikla (ne rangos darbai)"),$B$10*1.21+$E$10*1.21,$B$10+$E$10)*VLOOKUP($B$11,Support!$H$3:'Support'!$I$6,2,0)-$B$31-$B$32)/$B$28,2)>=$B$33,"TAIP","NE"),"NE") -> TAIP | D34: =IFERROR(IF(ROUND((IF(OR($B$11="PVM moketojas",$B$11="PVM moketojas - PVM neapmokestinama veikla (ne rangos darbai)"),$B$10*1.21+$E$10*1.21,$B$10+$E$10)*VLOOKUP($B$11,Support!$H$3:'Support'!$I$6,2,0)-$B$31-$B$32)/$B$28,2)>=$B$33,"TAIP","NE"),"NE") -> TAIP | E34: =IFERROR(IF(ROUND((IF(OR($B$11="PVM moketojas",$B$11="PVM moketojas - PVM neapmokestinama veikla (ne rangos darbai)"),$B$10*1.21+$E$10*1.21,$B$10+$E$10)*VLOOKUP($B$11,Support!$H$3:'Support'!$I$6,2,0)-$B$31-$B$32)/$B$28,2)>=$B$33,"TAIP","NE"),"NE") -> TAIP | F34: =IFERROR(IF(ROUND((IF(OR($B$11="PVM moketojas",$B$11="PVM moketojas - PVM neapmokestinama veikla (ne rangos darbai)"),$B$10*1.21+$E$10*1.21,$B$10+$E$10)*VLOOKUP($B$11,Support!$H$3:'Support'!$I$6,2,0)-$B$31-$B$32)/$B$28,2)>=$B$33,"TAIP","NE"),"NE") -> TAIP | G34: =IFERROR(IF(ROUND((IF(OR($B$11="PVM moketojas",$B$11="PVM moketojas - PVM neapmokestinama veikla (ne rangos darbai)"),$B$10*1.21+$E$10*1.21,$B$10+$E$10)*VLOOKUP($B$11,Support!$H$3:'Support'!$I$6,2,0)-$B$31-$B$32)/$B$28,2)>=$B$33,"TAIP","NE"),"NE") -> TAIP | I34: TAIP
A35: Išsimokėjimo terminas (paskaičiuojamas automatiškai) | B35: 36 men. (3m.) | C35: =OFFSET(Support!$A$7,1,MATCH($D$15,Support!$A$7:'Support'!$B$7,0)-1,1,1) -> 12 men. (1m.) | D35: =OFFSET(Support!$A$7,1,MATCH($D$15,Support!$A$7:'Support'!$B$7,0)-1,1,1) -> 12 men. (1m.) | E35: =OFFSET(Support!$A$7,1,MATCH($D$15,Support!$A$7:'Support'!$B$7,0)-1,1,1) -> 12 men. (1m.) | F35: =OFFSET(Support!$A$7,1,MATCH($D$15,Support!$A$7:'Support'!$B$7,0)-1,1,1) -> 12 men. (1m.) | G35: =OFFSET(Support!$A$7,1,MATCH($D$15,Support!$A$7:'Support'!$B$7,0)-1,1,1) -> 12 men. (1m.) | I35: 36 men. (3m.)
A36: Objekto nemokumas, % | I36: =IF(B36="","",B36) -> 
A37: Faktoringo kaina, % | B37: =VLOOKUP(B35,Support!A18:'Support'!G25,7,0) -> 0.1447903758 | I37: =B37 -> 0.1447903758
A38: Faktoringo kaina + PVM, EUR | B38: =SUM(B72:G72) -> 13249.22 | I38: =B38 -> 13249.22
A39: Ar darbams taikomas garantinis laikotarpis? | B39: =IFERROR(IF('Darbu Sarasas'!$N$4="NE",VLOOKUP(Paraiska!$B$27,'Darbu Sarasas'!$F$2:$I$55,4,FALSE),IF('Darbu Sarasas'!$N$4="TAIP",VLOOKUP($B$52,Support!$N$35:$O$37,2,FALSE),"NE")),"NE") -> TAIP | E39: =IF($E$27=Support!$AA$3,"NE",IF(OR($E$52=Support!$O$3,Paraiska!$E$52=Support!$O$4,Support!$AE$3="TAIP"),VLOOKUP(Paraiska!$E$27,'Darbu Sarasas'!$F$2:$I$55,4,FALSE),IF(Paraiska!$E$52=Support!$O$5,"NE",""))) -> NE | I39: =IF(OR(B39="TAIP",E39="TAIP")=TRUE,"TAIP","NE") -> TAIP
A40: Garantijos suma, sulaikoma rangovui | B40: =ROUND(IF(B39="TAIP",B58*VLOOKUP(B35,Support!A18:'Support'!H25,8,0),0),2) -> 2937.99 | E40: =ROUND(IF(E39="TAIP",E58*VLOOKUP(B35,Support!A18:'Support'!H25,8,0),0),2) -> 0 | I40: =SUM(B40,E40) -> 2937.99
A41: Netaikyti išsimokėjimo (klientų pageidavimu) (galima tik kai įvesta Prognozuojama Rangovo siūloma suma, kuri <=3300 EUR, ir Objekto nemokumas, kuris <=10%) | B41: NE | C41: =IFERROR(IF(ROUND((IF(OR($B$11="PVM moketojas",$B$11="PVM moketojas - PVM neapmokestinama veikla (ne rangos darbai)"),$B$10*1.21+$E$10*1.21,$B$10+$E$10)*VLOOKUP($B$11,Support!$H$3:'Support'!$I$6,2,0)-$B$31-$B$32)/$B$28,2)>=$B$33,"TAIP","NE"),"NE") -> TAIP | D41: =IFERROR(IF(ROUND((IF(OR($B$11="PVM moketojas",$B$11="PVM moketojas - PVM neapmokestinama veikla (ne rangos darbai)"),$B$10*1.21+$E$10*1.21,$B$10+$E$10)*VLOOKUP($B$11,Support!$H$3:'Support'!$I$6,2,0)-$B$31-$B$32)/$B$28,2)>=$B$33,"TAIP","NE"),"NE") -> TAIP | E41: =IFERROR(IF(ROUND((IF(OR($B$11="PVM moketojas",$B$11="PVM moketojas - PVM neapmokestinama veikla (ne rangos darbai)"),$B$10*1.21+$E$10*1.21,$B$10+$E$10)*VLOOKUP($B$11,Support!$H$3:'Support'!$I$6,2,0)-$B$31-$B$32)/$B$28,2)>=$B$33,"TAIP","NE"),"NE") -> TAIP | F41: =IFERROR(IF(ROUND((IF(OR($B$11="PVM moketojas",$B$11="PVM moketojas - PVM neapmokestinama veikla (ne rangos darbai)"),$B$10*1.21+$E$10*1.21,$B$10+$E$10)*VLOOKUP($B$11,Support!$H$3:'Support'!$I$6,2,0)-$B$31-$B$32)/$B$28,2)>=$B$33,"TAIP","NE"),"NE") -> TAIP | G41: =IFERROR(IF(ROUND((IF(OR($B$11="PVM moketojas",$B$11="PVM moketojas - PVM neapmokestinama veikla (ne rangos darbai)"),$B$10*1.21+$E$10*1.21,$B$10+$E$10)*VLOOKUP($B$11,Support!$H$3:'Support'!$I$6,2,0)-$B$31-$B$32)/$B$28,2)>=$B$33,"TAIP","NE"),"NE") -> TAIP | I41: =B41 -> NE | L41: =IF(AND(B41="TAIP",B34="TAIP"),"Netaikyti išsimokėjimo (klientų pageidavimu) negalima, nes Prognozuojama Rangovo siūloma suma ir/ar Objekto nemokumas neatitinka sąlygų.","") -> 
A42: Reikalingas kitoks išsimokėjimo terminas, nei kad parenka skaičiuoklė (klientų pageidavimu) | B42: NE | I42: =B42 -> NE
A43: Ar reikia fin. skyriaus patvirtinimo? | B43: =IF(Support!B181="TAIP",IF(B41="TAIP","TAIP, inicijuokite sutrumpintą DVS procesą",IF(OR(B36>0.1,D105>0.5,D107>50,B42="TAIP",Support!E254>0),"TAIP, inicijuokite pilną DVS procesą","TAIP, inicijuokite sutrumpintą DVS procesą")),"NE, nereikia inicijuoti DVS proceso") -> TAIP, inicijuokite sutrumpintą DVS procesą | I43: =B43 -> TAIP, inicijuokite sutrumpintą DVS procesą
B45: =IF(B34="NE","Išsimokėjimas nesuteikiamas, klientams už darbą priskaitoma per vieną mėnesį.","Išsimokėjimo terminas paskaičiuojamas automatiškai, optimizuojant pardavimo kainą.") -> Išsimokėjimo terminas paskaičiuojamas automatiškai, optimizuojant pardavimo kainą.
B46: =IF(VLOOKUP(B35,Support!A18:'Support'!I25,9,0)=B34,"","KLAIDA: NETINKAMA REIKŠMĖ. Patikslinkite išsimokėjimo terminą") -> 
B47: =IF(OR(B15="KLAIDA: Atvirkštinį PVM galima rinktis tik tuo atveju, jei rangovas yra PVM mokėtojas",B16="KLAIDA: Atvirkštinį PVM galima rinktis tik tuo atveju, jei rangovas yra PVM mokėtojas",B46="KLAIDA: NETINKAMA REIKŠMĖ. Patikslinkite išsimokėjimo terminą")=TRUE,"FORMOJE YRA KLAIDŲ, PRAŠOME PATIKRINTI ĮVESTAS REIKŠMES","") -> 
B48: =IF(B36<=10%,"","Darbų finansavimas išsimokėtinai nėra galimas. Nemokumas didesnis kaip 10 proc.") -> 
A52: Ar taikomas garantinis laikotarpis (draudimas)?* | B52: Taikomas garantinis sulaikymas | E52: Pasirinkite garantijos (draudimo) taikymą
A53: Susigrąžinama PVM dydžio suma, EUR | B53: =IF(B9=0,0,IF(OR($B$11="PVM moketojas",$B$11="PVM moketojas - PVM neapmokestinama veikla (ne rangos darbai)"),$B$71+$B$65,0)) -> 0 | E53: =IF(E9=0,0,IF(OR($B$11="PVM moketojas",$B$11="PVM moketojas - PVM neapmokestinama veikla (ne rangos darbai)"),$E$90+$E$71+$E$65,$E$90)) -> 0 | I53: =SUM(B53,E53) -> 0
B55: REZULTATAS | I55: REZULTATAS
B57: RANGOVO ISRASOMA SASKAITA (UZSAKOVUI) | I57: RANGOVO IŠRAŠOMA SĄSKAITA (UŽSAKOVUI)
A58: Suma be PVM | B58: =IF(OR(AND(Paraiska!B6 = 1, Paraiska!B9=""),AND(Paraiska!B6 = 2, Paraiska!B9="", Paraiska!E9="")),IF(B47="FORMOJE YRA KLAIDŲ, PRAŠOME PATIKRINTI ĮVESTAS REIKŠMES",0,IF(OR(B11="PVM moketojas",B11="PVM moketojas - PVM neapmokestinama veikla (ne rangos darbai)")=TRUE,B10+Support!B65+B70,B10+Support!D65+B72)),IF(B47="FORMOJE YRA KLAIDŲ, PRAŠOME PATIKRINTI ĮVESTAS REIKŠMES",0,IF(OR(B11="PVM moketojas",B11="PVM moketojas - PVM neapmokestinama veikla (ne rangos darbai)")=TRUE,B9+Support!B65+B70,B9+Support!D65+B72))) -> 73449.77 | E58: =IF(OR(AND(Paraiska!B6 = 1, Paraiska!B9=""),AND(Paraiska!B6 = 2, Paraiska!B9="", Paraiska!E9="")),IF(B47="FORMOJE YRA KLAIDŲ, PRAŠOME PATIKRINTI ĮVESTAS REIKŠMES",0,IF(OR(B11="PVM moketojas",B11="PVM moketojas - PVM neapmokestinama veikla (ne rangos darbai)")=TRUE,E10+Support!B86+E70,E10+Support!D86+E72)),IF(B47="FORMOJE YRA KLAIDŲ, PRAŠOME PATIKRINTI ĮVESTAS REIKŠMES",0,IF(OR(B11="PVM moketojas",B11="PVM moketojas - PVM neapmokestinama veikla (ne rangos darbai)")=TRUE,E9+Support!B86+E70,E9+Support!D86+E72))) -> 0 | I58: =SUM(B58:G58) -> 73449.77
A59: PVM | B59: =ROUND(IF(B11="PVM moketojas",B58*0.21,0),2) -> 15424.45 | E59: =ROUND(IF(B11="PVM moketojas",E58*0.21,0),2) -> 0 | I59: =SUM(B59:G59) -> 15424.45
A60: Suma su PVM | B60: =SUM(B58,B59) -> 88874.22 | E60: =SUM(E58,E59) -> 0 | I60: =SUM(I58,I59) -> 88874.22
B63: UZSAKOVO ISRASOMA SASKAITA (RANGOVUI) | I63: UŽSAKOVO IŠRAŠOMA SĄSKAITA (RANGOVUI)
A64: Suma be PVM | B64: =IF(B47="FORMOJE YRA KLAIDŲ, PRAŠOME PATIKRINTI ĮVESTAS REIKŠMES",0,Support!B65) -> 12500 | E64: =IF(B47="FORMOJE YRA KLAIDŲ, PRAŠOME PATIKRINTI ĮVESTAS REIKŠMES",0,Support!B86) -> 0 | I64: =SUM(B64:G64) -> 12500
A65: PVM | B65: =IF(B47="FORMOJE YRA KLAIDŲ, PRAŠOME PATIKRINTI ĮVESTAS REIKŠMES",0,Support!C65) -> 2624.99 | E65: =IF(B47="FORMOJE YRA KLAIDŲ, PRAŠOME PATIKRINTI ĮVESTAS REIKŠMES",0,Support!C86) -> 0 | I65: =SUM(B65:G65) -> 2624.99
A66: Suma su PVM | B66: =SUM(B64:D65) -> 15124.99 | E66: =SUM(E64:G65) -> 0 | I66: =SUM(I64:K65) -> 15124.99
B69: FAKTORINGO SANAUDOS | I69: FAKTORINGO SĄNAUDOS
A70: Suma be PVM | B70: =IF(OR(AND(Paraiska!B6 = 1, Paraiska!B9=""),AND(Paraiska!B6 = 2, Paraiska!B9="", Paraiska!E9="")),IFERROR(ROUND((Support!D53-(((B31+B32)/SUM(B10:G10))*B10))*B37,2),0),IFERROR(ROUND((Support!D53-(((B31+B32)/SUM(B9:G9))*B9))*B37,2),0)) -> 10949.77 | E70: =IF(OR(AND(Paraiska!B6 = 1, Paraiska!B9=""),AND(Paraiska!B6 = 2, Paraiska!B9="", Paraiska!E9="")),IF(E10=0,0,ROUND(((Support!D53+Support!D73)-B31-B32)*B37,2)-B70),IF(E9=0,0,ROUND(((Support!D53+Support!D73)-B31-B32)*B37,2)-B70)) -> 0 | I70: =SUM(B70:G70) -> 10949.77
A71: PVM | B71: =ROUND(B70*0.21,2) -> 2299.45 | E71: =IF(OR(AND(Paraiska!B6 = 1, Paraiska!B9=""),AND(Paraiska!B6 = 2, Paraiska!B9="", Paraiska!E9="")),IF(E10=0,0,ROUND((Support!D53+Support!D73-B31-B32)*B37*0.21,2)-B71),IF(E9=0,0,ROUND((Support!D53+Support!D73-B31-B32)*B37*0.21,2)-B71)) -> 0 | I71: =SUM(B71:G71) -> 2299.45
A72: Faktoringo sąnaudos | B72: =SUM(B70:D71) -> 13249.22 | E72: =SUM(E70:G71) -> 0 | I72: =SUM(B72:G72) -> 13249.22
B75: KONKURSINE KAINA | I75: KONKURSINĖ KAINA
A76: Suma be PVM | B76: =B58 -> 73449.77 | E76: =E58 -> 0 | I76: =SUM(B76:G76) -> 73449.77
A77: PVM | B77: =ROUND(IF(B11="Ne PVM moketojas - rangos darbai",0,B58*0.21),2) -> 15424.45 | E77: =ROUND(IF(B11="Ne PVM moketojas - rangos darbai",0,E58*0.21),2) -> 0 | I77: =SUM(B77:G77) -> 15424.45
A78: Suma su PVM | B78: =SUM(B76:D77) -> 88874.22 | E78: =SUM(E76:G77) -> 0 | I78: =SUM(B78:G78) -> 88874.22
B81: PINIGU JUDEJIMAS (NURODOMAS SUTARTYJE) | I81: PINIGŲ JUDĖJIMAS (NURODOMAS SUTARTYJE)
A82: Rangovo išrašoma sąskaita (sut. 2.1) | B82: =B60 -> 88874.22 | E82: =E60 -> 0 | I82: =SUM(B82:G82) -> 88874.22
A83: Kaupiamosiomis ir kitomis lėšomis apmokama dalis (sut. 2.2) | B83: =IF(OR(AND(Paraiska!B6 = 1, Paraiska!B9=""),AND(Paraiska!B6 = 2, Paraiska!B9="", Paraiska!E9="")),IFERROR((B31+B32)/SUM(B10:G10)*B10,0),IFERROR((B31+B32)/SUM(B9:G9)*B9,0)) -> 0 | E83: =SUM(B31:G32)-B83 -> 0 | I83: =SUM(B83:G83) -> 0
A84: Jur. klientų suma, surenkama per 1 mėn., apmokama dalis (sut. 2.2) | I84: =SUM(B84:G84) -> 0
A85: Likusi sąskaitos dalis (be kaupiamųjų lėšų) (faktoringo atveju, faktoringuojama) (sut. 2.3) | B85: =B82-B83-B84 -> 88874.22 | E85: =E82-E83-E84 -> 0 | I85: 88874.22
A86: Faktoringo mokestis (sut. 4.1) | B86: =IF(B47="FORMOJE YRA KLAIDŲ, PRAŠOME PATIKRINTI ĮVESTAS REIKŠMES",0,B72) -> 13249.22 | E86: =IF(B47="FORMOJE YRA KLAIDŲ, PRAŠOME PATIKRINTI ĮVESTAS REIKŠMES",0,E72) -> 0 | I86: =SUM(B86:G86) -> 13249.22
A87: Administratorius sulaiko dalį lėšų už atvirkštinį PVM (sut. 4.3) | B87: =IF(B12="TAIP",B59,0) -> 15424.45 | E87: =IF(E12="TAIP",E59,0) -> 0 | I87: 15424.45
A88: Administratorius sulaiko dalį lėšų už garantiją (sut. 4.2) | B88: =B40 -> 2937.99 | E88: =E40 -> 0 | I88: 2937.99
A89: Administratorius sulaiko dalį lėšų už administravimo mokesčius (sut. 4.4) | B89: =B66 -> 15124.99 | E89: =E66 -> 0 | I89: 15124.99
A90: Rangovo gaunama suma | B90: =IF(B47="FORMOJE YRA KLAIDŲ, PRAŠOME PATIKRINTI ĮVESTAS REIKŠMES",0,(B60-B88-B86-B87-B89)) -> 42137.57 | E90: =IF(B47="FORMOJE YRA KLAIDŲ, PRAŠOME PATIKRINTI ĮVESTAS REIKŠMES",0,(E60-E88-E86-E87-E89)) -> 0 | I90: 42137.57
A91: Rangovo gaunama suma (kaupiamosios ir kitos lėšos) | B91: =IF(B83>B90,B90,B83) -> 0 | E91: =IF(E83>E90,E90,E83) -> 0 | I91: 0
A92: Rangovo gaunama suma (Jur. klientų suma, surenkama per 1 mėn.) | I92: =SUM(B92:G92) -> 0
A93: Rangovo gaunama suma (be kaupiamųjų ir kitų lėšų (sut. 4.8)) | B93: =B90-B91-B92 -> 42137.57 | E93: =E90-E91-E92 -> 0 | I93: =SUM(B93:G93) -> 42137.57
A97: PAPILDOMA INFORMACIJA UŽSAKOVUI:
A98: Gyventojams išrašomos sąskaitos faktūros | B98: Suma | C98: PVM | D98: Suma su PVM
A99: Už visą laikotarpį - KONKURSINĖ KAINA | B99: =IFERROR(SUM(B58:G58),0) -> 73449.77 | C99: =IFERROR(ROUND(IF(B11="Ne PVM moketojas - rangos darbai",0,SUM(B58:G58)*0.21),2),0) -> 15424.45 | D99: =SUM(B99,C99) -> 88874.22
A100: Kaupiamųjų ir kitų lėšų panaudojimas | B100: =IFERROR(ROUND(IF(C99>0,((B31+B32)/1.21),B31+B32),2),0) -> 0 | C100: =D100-B100 -> 0 | D100: =B31+B32 -> 0
A101: Likusi mokėtina suma (Konkursinė kaina minus kaupiamosios ir kitos iš anksto panaudotos lėšos) | B101: =B99-B100 -> 73449.77 | C101: =C99-C100 -> 15424.45 | D101: =D99-D100 -> 88874.22
A102: Skaičiuojama įvertinus kaupiamąsias lėšas:
A103: Už vieną mėnesį (namui) | B103: =B101/VLOOKUP($B$35,Support!$A$18:'Support'!$J$25,10,0) -> 2040.271389 | C103: =C101/VLOOKUP($B$35,Support!$A$18:'Support'!$J$25,10,0) -> 428.4569444 | D103: =D101/VLOOKUP($B$35,Support!$A$18:'Support'!$J$25,10,0) -> 2468.728333
A104: Suma vienam kv. m. už visą laikotarpį | B104: =B101/$B$28 -> 12.95440107 | C104: =C101/$B$28 -> 2.720423925 | D104: =D101/$B$28 -> 15.674825
A105: Suma vienam kv. m. per vieną mėnesį | B105: =B103/$B$28 -> 0.3598444742 | C105: =C103/$B$28 -> 0.07556733125 | D105: =D103/$B$28 -> 0.4354118054
A106: Suma vidutinio dydžio patalpai (butui) už visą laikotarpį | B106: =IFERROR(B101/$B$30,0) -> 844.2502299 | C106: =IFERROR(C101/$B$30,0) -> 177.2925287 | D106: =IFERROR(D101/$B$30,0) -> 1021.542759
A107: Suma vidutinio dydžio patalpai (butui) per vieną mėnesį | B107: =IFERROR(B103/$B$30,0) -> 23.45139527 | C107: =IFERROR(C103/$B$30,0) -> 4.924792465 | D107: =IFERROR(D103/$B$30,0) -> 28.37618774
A111: KONTROLĖ (UŽDARBIS) | B111: KONTROLĖ (UŽDARBIS) | I111: KONTROLĖ (UŽDARBIS)
A112: Rangovas | B112: =SUM(B113:B115) -> 45075.56 | I112: =B112 -> 45075.56
A113: Pardavimo pajamos | B113: =SUM(B58:G58) -> 73449.77 | I113: =B113 -> 73449.77
A114: Komisinių sąnaudos | B114: =-IF(OR(B11="PVM mokėtojas",B11="PVM mokėtojas - PVM neapmokestinama veikla, ne rangos darbai")=TRUE,SUM(B64:G64),SUM(B64:G64)+SUM(B65:G65)) -> -15124.99 | I114: -15124.99
A115: Faktoringo sąnaudos | B115: =-IF(B47="FORMOJE YRA KLAIDŲ, PRAŠOME PATIKRINTI ĮVESTAS REIKŠMES",0,IF(OR(B11="PVM mokėtojas",B11="PVM mokėtojas - PVM neapmokestinama veikla, ne rangos darbai")=TRUE,SUM(B70:G70),SUM(B72:G72))) -> -13249.22 | I115: -13249.22
A117: Administratorius | B117: =SUM(B64:G64) -> 12500 | I117: =B117 -> 12500
A118: Finansuotojas | B118: =IF(B47="FORMOJE YRA KLAIDŲ, PRAŠOME PATIKRINTI ĮVESTAS REIKŠMES",0,IF(OR(B11="PVM mokėtojas",B11="PVM mokėtojas - PVM neapmokestinama veikla, ne rangos darbai")=TRUE,SUM(B70:G70),SUM(B72:G72))) -> 13249.22 | I118: 13249.22
A119: VMI | B119: =IF(OR(B11="PVM mokėtojas",B11="PVM mokėtojas - PVM neapmokestinama veikla, ne rangos darbai")=TRUE,C99,C99+B65+E65) -> 18049.44 | I119: 18049.44
A121: Iš viso | B121: =SUM(B112,B117,B118,B119) -> 88874.22 | I121: =B121 -> 88874.22
A122: Kontrolė | B122: =D99-B121 -> 0 | I122: 0
B131: Darbas #1 | E131: Darbas #2
B132: PortalPRO | I132: PortalPRO
A133: Rangovo gaunamos pajamos, EUR be PVM | B133: 2000 | I133: =SUM(B133:G133) -> 2000
A134: Darbų vykdytojo PVM mokėtojo statusas | B134: PVM mokėtojas | I134: =B134 -> PVM mokėtojas
A136: Administratoriaus pavadinimas | B136: UAB „Mano Būstas Alytus“ | I136: =B136 -> UAB „Mano Būstas Alytus“
A137: Iniciatorius | I137: =B137 -> 0
A139: Namo valdymo forma | B139: Bendrija | I139: =B139 -> Bendrija
A140: Namo adresas | I140: =B140 -> 0
A141: Darbо tipas | I141: =B141 -> 0
A142: Naudingas namo/laiptinės plotas, kv. m. | B142: 500 | I142: 500
A143: Namo/laiptinės butų skaičius, vnt. | I143: 0
A144: Panaudojama kaupiamųjų lėšų suma | I144: 0
A145: Panaudojamos kitos iš anksto sumokamos sumos, Eur | I145: 0
A146: Objekto nemokumas, % | B146: 0 | I146: =B146 -> 0
A147: Minimali darbų kaina vienam kv.m. taikant išsimokėjimą | B147: 1.5 | I147: =B147 -> 1.5
A148: Ar darbams suteikiamas išsimokėjimo terminas? | B148: =IFERROR(IF(AND(B156>2000,(B156-B144-B145)/B142>=1.5)=TRUE,"TAIP","NE"),"NE") -> TAIP | I148: =B148 -> TAIP
A149: Išsimokėjimo terminas (paskaičiuojamas automatiškai) | B149: =IF(B148="NE","Be išsimokėjimo termino","6 mėn.") -> 6 mėn. | I149: =B149 -> 6 mėn. | J149: Be išsimokėjimo termino | K149: Be išsimokėjimo termino
A153: Sąskaita faktūra | B153: PortalPRO sąskaita | I153: PortalPRO sąskaita
A154: Suma be PVM | B154: =B133 -> 2000 | E154: =E133 -> 0 | I154: =SUM(B154:G154) -> 2000
A155: PVM | B155: =ROUND(IF(B134="PVM mokėtojas",B154*0.21,0),2) -> 420 | E155: =ROUND(IF(B134="PVM mokėtojas",E154*0.21,0),2) -> 0 | I155: =SUM(B155:G155) -> 420
A156: Suma su PVM | B156: =SUM(B154:D155) -> 2420 | E156: =SUM(E154:G155) -> 0 | I156: 2420
A160: PAPILDOMA INFORMACIJA ADMINISTRATORIUI:
A161: Gyventojams išrašomos sąskaitos faktūros | B161: Suma | C161: PVM | D161: Suma su PVM
A162: Už visą laikotarpį - KONKURSINĖ KAINA | B162: =SUM(B154:G154) -> 2000 | C162: =SUM(B155:G155) -> 420 | D162: =SUM(B162:C162) -> 2420
A163: Kaupiamųjų ir kitų lėšų panaudojimas | B163: =ROUND(IF(B134="PVM mokėtojas",SUM(B144:G145)/1.21,SUM(B144:G145)),2) -> 0 | C163: =D163-B163 -> 0 | D163: =SUM(B144:G145) -> 0
A164: Už visą laikotarpį - KONKURSINĖ KAINA (panaudojus kaupiamąsias lėšas) | B164: =B162-B163 -> 2000 | C164: =C162-C163 -> 420 | D164: =SUM(B164:C164) -> 2420
A165: Skaičiuojama įvertinus kaupiamąsias lėšas:
A166: Už vieną mėnesį (namui) | B166: =IF(B148="TAIP",B164/6,B164) -> 333.3333333 | C166: =IF(B148="TAIP",C164/6,C164) -> 70 | D166: =SUM(B166:C166) -> 403.3333333
A167: Suma vienam kv. m. už visą laikotarpį | B167: =IFERROR(B164/$B$142,0) -> 4 | C167: =IFERROR(C164/$B$142,0) -> 0.84 | D167: 4.84
A168: Suma vienam kv. m. per vieną mėnesį | B168: =IFERROR(IF(B148="TAIP",B164/B142/6,B164/B142),0) -> 0.6666666667 | C168: =IFERROR(IF(B148="TAIP",C164/B142/6,C164/B142),0) -> 0.14 | D168: 0.8066666667
A169: Suma vidutinio dydžio patalpai (butui) už visą laikotarpį | B169: =IFERROR(B164/B143,0) -> 0 | C169: =IFERROR(C164/B143,0) -> 0 | D169: 0
A170: Suma vidutinio dydžio patalpai (butui) per vieną mėnesį | B170: =IFERROR(IF(B148="TAIP",B164/B143/6,B164/B143),0) -> 0 | C170: =IFERROR(IF(B148="TAIP",C164/B143/6,C164/B143),0) -> 0 | D170: 0
B176: PASLAUGŲ PAKETO KAINOS APSKAIČIAVIMAS | I176: PASLAUGŲ PAKETO KAINOS APSKAIČIAVIMAS | O176: =IF('Darbu Sarasas'!$N$4="NE","*Pasirinktos netinkamos darbų garantijos sąlygos !!!","") -> 
B177: Suma | C177: PVM | D177: Suma su PVM | E177: Suma | F177: PVM | G177: Suma su PVM | I177: Suma | J177: PVM | K177: Suma su PVM
A178: Techninis konsultavimas dėl optimalaus darbų įgyvendinimo | B178: =IF(OR(AND(Paraiska!B6 = 1, Paraiska!B9=""),AND(Paraiska!B6 = 2, Paraiska!B9="", Paraiska!E9="")),0,IFERROR(Support!B37/SUM(B9:G9)*B9,0)) -> 0 | C178: =ROUND(B178*0.21,2) -> 0 | D178: =B178+C178 -> 0 | E178: =I178-B178 -> 0 | F178: =J178-C178 -> 0 | G178: =K178-D178 -> 0 | I178: =IF(B9="",0,ROUND(VLOOKUP(Support!W18,Support!N18:T25,IF(B35=Support!A18,4,5),FALSE)*(B9+E9),2)+ROUND(IF(B36<D8,0,B36*VLOOKUP(B35,Support!A18:K25,11,0))*(B9+E9),2)) -> 0 | J178: =ROUND(I178*0.21,2) -> 0 | K178: =I178+J178 -> 0 | O178: =IF('Darbu Sarasas'!$N$4="NE","Tokiems darbams kaip: kondicionavimo sistemų papildymas šaldymo skysčiu, ","") -> 
A179: Projektinės užduoties parengimas, siekiant Rangovui tinkamai pateikti pirkimo pasiulymą | O179: =IF('Darbu Sarasas'!$N$4="NE","projektavimo darbai, konstrukcijų būklės vertinimas, techninės apžiūros, tyrimai, ","") -> 
A180: Rangovų atliktų darbų garantinių įsipareigojimų organizavimas | O180: =IF('Darbu Sarasas'!$N$4="NE","periodiniai patikrinimai, ekspertizės,","") -> 
A181: Rangovų sertifikavimas (patikimų tiekejų sąrašas)
A182: Marketinginės, reklaminės (patikimų rangovų sąrašo viešinimo) paslaugos | O182: =IF('Darbu Sarasas'!$N$4="NE","yra netaikomas nei garantinis sulaikymas, nei draudimas","") -> 
A183: =IF(B34="TAIP","Rangovų finansinio faktoringo organizavimas","") -> Rangovų finansinio faktoringo organizavimas | B183: =IF(B34="TAIP",IF(OR(AND(Paraiska!B6 = 1, Paraiska!B9=""),AND(Paraiska!B6 = 2, Paraiska!B9="", Paraiska!E9="")),0,IFERROR(Support!B42/SUM(B9:G9)*B9,0)),"") -> 0 | C183: =IF(B34="TAIP",ROUND(B183*0.21,2),"") -> 0 | D183: =IF(B34="TAIP",B183+C183,"") -> 0 | E183: =IF(B34="TAIP",I183-B183,"") -> 0 | F183: =IF(B34="TAIP",J183-C183,"") -> 0 | G183: =IF(B34="TAIP",K183-D183,"") -> 0 | I183: =IF(B34="TAIP",IF(B9="",0,IF(B35=Support!A18,0,ROUND(VLOOKUP(Support!W18,Support!N18:T25,6,FALSE)*(B9+E9),2))),"") -> 0 | J183: =IF(B34="TAIP",ROUND(I183*0.21,2),"") -> 0 | K183: =IF(B34="TAIP",I183+J183,"") -> 0
A184: =IF(B34="TAIP","Garantijos kaštai","") -> Garantijos kaštai | B184: =IF(B34="TAIP",IF(OR(AND(Paraiska!B6 = 1, Paraiska!B9=""),AND(Paraiska!B6 = 2, Paraiska!B9="", Paraiska!E9="")),0,IFERROR(Support!B43/SUM(B9:G9)*B9,0)),"") -> 0 | C184: =IF(B34="TAIP",ROUND(B184*0.21,2),"") -> 0 | D184: =IF(B34="TAIP",B184+C184,"") -> 0 | E184: =IF(B34="TAIP",I184-B184,"") -> 0 | F184: =IF(B34="TAIP",J184-C184,"") -> 0 | G184: =IF(B34="TAIP",K184-D184,"") -> 0 | I184: =IF(B34="TAIP",IF(B9="",0,IF(B35=Support!A18,0,ROUND(VLOOKUP(Support!W18,Support!N18:T25,7,FALSE)*(B9+E9),2))),"") -> 0 | J184: =IF(B34="TAIP",ROUND(I184*0.21,2),"") -> 0 | K184: =IF(B34="TAIP",I184+J184,"") -> 0 | O184: =IF('Darbu Sarasas'!$N$4="NE","Kitiems darbams turi būti taikomas arba garantinis sulaikymas, arba draudimas","") -> 
A186: UŽSAKOVO IŠRAŠOMA SĄSKAITA (RANGOVUI), BENDRA SUMA | B186: =SUM($B$178:$B$184) -> 0 | C186: =SUM($C$178:$C$184) -> 0 | D186: =SUM($D$178:$D$184) -> 0
I187: UŽSAKOVO IŠRAŠOMA SĄSKAITA (RANGOVUI)
I188: =IF(B9="",0,SUM(B64:G64)) -> 0
I189: =IF(B9="",0,SUM(B65:G65)) -> 0
I190: =IF(B9="",0,SUM(B66:G66)) -> 0
B193: =IF(B34="TAIP","FAKTORINGO SĄNAUDOS","") -> FAKTORINGO SĄNAUDOS | I193: =IF(B34="TAIP","FAKTORINGO SĄNAUDOS","") -> FAKTORINGO SĄNAUDOS
A194: =IF(B34="TAIP","Suma be PVM","") -> Suma be PVM | B194: =IF(B34="TAIP",IF(OR(AND(Paraiska!B6 = 1, Paraiska!B9=""),AND(Paraiska!B6 = 2, Paraiska!B9="", Paraiska!E9="")),0,IFERROR(ROUND((Support!D53-(((B31+B32)/SUM(B9:G9))*B9))*B37,2),0)),"") -> 0 | E194: =IF(B34="TAIP",IF(E9="",0,IF(E9=0,0,ROUND(((Support!D53+Support!D73)-B31-B32)*B37,2)-B70)),"") -> 0 | I194: =IF(B34="TAIP",IF(B9="",0,SUM(B70:G70)),"") -> 0
A195: =IF(B34="TAIP","PVM","") -> PVM | B195: =IF(B34="TAIP",IF(OR(AND(Paraiska!B6 = 1, Paraiska!B9=""),AND(Paraiska!B6 = 2, Paraiska!B9="", Paraiska!E9="")),0,ROUND(B70*0.21,2)),"") -> 0 | E195: =IF(B34="TAIP",IF(E9="",0,IF(E9=0,0,ROUND((Support!D53+Support!D73-B31-B32)*B37*0.21,2)-B71)),"") -> 0 | I195: =IF(B34="TAIP",IF(B9="",0,SUM(B71:G71)),"") -> 0
A196: =IF(B34="TAIP","Faktoringo sąnaudos","") -> Faktoringo sąnaudos | B196: =IF(B34="TAIP",IF(OR(AND(Paraiska!B6 = 1, Paraiska!B9=""),AND(Paraiska!B6 = 2, Paraiska!B9="", Paraiska!E9="")),0,SUM(B70:D71)),"") -> 0 | E196: =IF(B34="TAIP",IF(E9="",0,SUM(E70:G71)),"") -> 0 | I196: =IF(B34="TAIP",IF(B9="",0,SUM(B72:G72)),"") -> 0
B199: PINIGŲ JUDĖJIMAS (NURODOMAS SUTARTYJE) | I199: PINIGŲ JUDĖJIMAS (NURODOMAS SUTARTYJE)
A200: =IF(B34="TAIP","Faktoringo mokestis (sut. 4.1)","") -> Faktoringo mokestis (sut. 4.1) | B200: =IF(B34="TAIP",IF(OR(AND(Paraiska!B6 = 1, Paraiska!B9=""),AND(Paraiska!B6 = 2, Paraiska!B9="", Paraiska!E9="")),0,IF(B47="FORMOJE YRA KLAIDŲ, PRAŠOME PATIKRINTI ĮVESTAS REIKŠMES",0,B72)),"") -> 0 | E200: =IF(B34="TAIP",IF(E9="",0,IF(B47="FORMOJE YRA KLAIDŲ, PRAŠOME PATIKRINTI ĮVESTAS REIKŠMES",0,E72)),"") -> 0 | I200: =IF(B34="TAIP",IF(B9="",0,SUM(B86:G86)),"") -> 0
A201: Administratorius sulaiko dalį lėšų už atvirkštinį PVM (sut. 4.3) | B201: =IF(OR(AND(Paraiska!B6 = 1, Paraiska!B9=""),AND(Paraiska!B6 = 2, Paraiska!B9="", Paraiska!E9="")),0,IF(B12="TAIP",B59,0)) -> 0 | E201: =IF(E9="",0,IF(E12="TAIP",E59,0)) -> 0 | I201: =IF(B9="",0,SUM(B87:G87)) -> 0
A202: Administratorius sulaiko dalį lėšų už garantiją (sut. 4.2) | B202: =IF(OR(AND(Paraiska!B6 = 1, Paraiska!B9=""),AND(Paraiska!B6 = 2, Paraiska!B9="", Paraiska!E9="")),0,B40) -> 0 | E202: =IF(E9="",0,E40) -> 0 | I202: =IF(B9="",0,SUM(B88:G88)) -> 0
A203: Administratorius sulaiko dalį lėšų už administravimo mokesčius (sut. 4.4) | B203: =IF(OR(AND(Paraiska!B6 = 1, Paraiska!B9=""),AND(Paraiska!B6 = 2, Paraiska!B9="", Paraiska!E9="")),0,B66) -> 0 | E203: =IF(E9="",0,E66) -> 0 | I203: =IF(B9="",0,SUM(B89:G89)) -> 0
B204: Čia nepildyti! Pildyti tik nuspaudus vartotojo mygtuką
B207: Įjungus lentelę, viršuje matysite pranešimą apie Macros aktyvavimą, visada spauskite "Enable Content"

Sheet Issimokejimo grafikas (hidden)
C1: Pildomi laukai
C2: Informacija apie paskolą
C3: Mėnesiai | D3: =IF(Paraiska!B13="PortalPRO",IF(Paraiska!B148="TAIP",6,1),VLOOKUP(Paraiska!B35,Support!$A$18:$J$25,10,0)) -> 36
C4: Suma | D4: =IF(Paraiska!B13="PortalPRO",Paraiska!D164,Paraiska!I85) -> 88874.22
C5: Data | D5: 2021-04-25
D6: =EOMONTH(C9,D3-1) -> 2024-03-31
B7: Mokėjimų grafikas
B8: Mėnesis | C8: Kredito grąžinimo ir palūkanų mokėjimo data | D8: Kredito likutis periodo pradžioje | E8: Mokėtina suma | F8: Kredito likutis periodo pabaigoje
B9: 1 | C9: =IF($B$9>$D$3,"",EOMONTH(D5,0)) -> 2021-04-30 | D9: =D4 -> 88874.22 | E9: =IF(C9=$D$6,D9,ROUND(IF($D$4/$D$3>D9,D9,$D$4/$D$3),2)) -> 2468.73 | F9: =D9-E9 -> 86405.49
B10: 2 | C10: =IF(B10>$D$3,"",EOMONTH(C9,1)) -> 2021-05-31 | D10: =F9 -> 86405.49 | E10: =IF(C10=$D$6,D10,ROUND(IF($D$4/$D$3>D10,D10,$D$4/$D$3),2)) -> 2468.73 | F10: =D10-E10 -> 83936.76
B11: 3 | C11: 2021-06-30 | D11: =F10 -> 83936.76 | E11: 2468.73 | F11: 81468.03
B12: 4 | C12: 2021-07-31 | D12: 81468.03 | E12: 2468.73 | F12: 78999.3
B13: 5 | C13: 2021-08-31 | D13: 78999.3 | E13: 2468.73 | F13: 76530.57
B14: 6 | C14: 2021-09-30 | D14: 76530.57 | E14: 2468.73 | F14: 74061.84
B15: 7 | C15: 2021-10-31 | D15: 74061.84 | E15: 2468.73 | F15: 71593.11
B16: 8 | C16: 2021-11-30 | D16: 71593.11 | E16: 2468.73 | F16: 69124.38
B17: 9 | C17: 2021-12-31 | D17: 69124.38 | E17: 2468.73 | F17: 66655.65
B18: 10 | C18: 2022-01-31 | D18: 66655.65 | E18: 2468.73 | F18: 64186.92
B19: 11 | C19: 2022-02-28 | D19: 64186.92 | E19: 2468.73 | F19: 61718.19
B20: 12 | C20: 2022-03-31 | D20: 61718.19 | E20: 2468.73 | F20: 59249.46
B21: 13 | C21: 2022-04-30 | D21: 59249.46 | E21: 2468.73 | F21: 56780.73
B22: 14 | C22: 2022-05-31 | D22: 56780.73 | E22: 2468.73 | F22: 54312
B23: 15 | C23: 2022-06-30 | D23: 54312 | E23: 2468.73 | F23: 51843.27
B24: 16 | C24: 2022-07-31 | D24: 51843.27 | E24: 2468.73 | F24: 49374.54
B25: 17 | C25: 2022-08-31 | D25: 49374.54 | E25: 2468.73 | F25: 46905.81
B26: 18 | C26: 2022-09-30 | D26: 46905.81 | E26: 2468.73 | F26: 44437.08
B27: 19 | C27: 2022-10-31 | D27: 44437.08 | E27: 2468.73 | F27: 41968.35
B28: 20 | C28: 2022-11-30 | D28: 41968.35 | E28: 2468.73 | F28: 39499.62
B29: 21 | C29: 2022-12-31 | D29: 39499.62 | E29: 2468.73 | F29: 37030.89
B30: 22 | C30: 2023-01-31 | D30: 37030.89 | E30: 2468.73 | F30: 34562.16
B31: 23 | C31: 2023-02-28 | D31: 34562.16 | E31: 2468.73 | F31: 32093.43
B32: 24 | C32: 2023-03-31 | D32: 32093.43 | E32: 2468.73 | F32: 29624.7
B33: 25 | C33: 2023-04-30 | D33: 29624.7 | E33: 2468.73 | F33: 27155.97
B34: 26 | C34: 2023-05-31 | D34: 27155.97 | E34: 2468.73 | F34: 24687.24
B35: 27 | C35: 2023-06-30 | D35: 24687.24 | E35: 2468.73 | F35: 22218.51
B36: 28 | C36: 2023-07-31 | D36: 22218.51 | E36: 2468.73 | F36: 19749.78
B37: 29 | C37: 2023-08-31 | D37: 19749.78 | E37: 2468.73 | F37: 17281.05
B38: 30 | C38: 2023-09-30 | D38: 17281.05 | E38: 2468.73 | F38: 14812.32
B39: 31 | C39: 2023-10-31 | D39: 14812.32 | E39: 2468.73 | F39: 12343.59
B40: 32 | C40: 2023-11-30 | D40: 12343.59 | E40: 2468.73 | F40: 9874.86
B41: 33 | C41: 2023-12-31 | D41: 9874.86 | E41: 2468.73 | F41: 7406.13
B42: 34 | C42: 2024-01-31 | D42: 7406.13 | E42: 2468.73 | F42: 4937.4
B43: 35 | C43: 2024-02-29 | D43: 4937.4 | E43: 2468.73 | F43: 2468.67
B44: 36 | C44: 2024-03-31 | D44: 2468.67 | E44: 2468.67 | F44: 0
B45: 37 | D45: 0 | E45: 0 | F45: 0
B46: 38 | D46: 0 | E46: 0 | F46: 0
B47: 39 | D47: 0 | E47: 0 | F47: 0
B48: 40 | D48: 0 | E48: 0 | F48: 0
B49: 41 | D49: 0 | E49: 0 | F49: 0
B50: 42 | D50: 0 | E50: 0 | F50: 0
B51: 43 | D51: 0 | E51: 0 | F51: 0
B52: 44 | D52: 0 | E52: 0 | F52: 0
B53: 45 | D53: 0 | E53: 0 | F53: 0
B54: 46 | D54: 0 | E54: 0 | F54: 0
B55: 47 | D55: 0 | E55: 0 | F55: 0
B56: 48 | D56: 0 | E56: 0 | F56: 0
D57: Bendra mokėtina suma | E57: =SUM(E9:E56) -> 88874.22

Sheet Darbu Sarasas
A1: Buhalterinė sąskaita NAV | B1: DK sąskaita | C1: Darbų pavadinimai | D1: Atvirkštinis PVM | E1: Garantija | F1: Pasirinkti darbo tipą | H1: Atvirkštinis PVM | I1: Garantija | K1: 1
A2: Apsaugos sistemų montavimas | B2: 50108053 | C2: Apsaugos sistemų (pultinės ir vaizdo stebėjimo kamerų) įrengimas ir montavimas | D2: Taikomas APVM | E2: TAIP | F2: Apsauginės, gaisrinės signalizacijos ir silpnų srovių sistemų instaliacijos, centralės keitimas, remontas | G2: Signalizacijos (silpnos srovės) apsauginė ir gaisrinė | H2: Taikomas APVM | I2: TAIP | K2: =IF(I2="TAIP",0,IF(I2="NE",1,"")) -> 0 | M2: Ar pasirinktas darbo tipas, kuriam netaikomas nei garantinis laikotarpis, nei draudimas? | N2: =IF(OR(Paraiska!$B$27='Darbu Sarasas'!$F$1,Paraiska!$B$27='Darbu Sarasas'!$F$20,Paraiska!$B$27='Darbu Sarasas'!$F$31,Paraiska!$B$27='Darbu Sarasas'!$F$36,Paraiska!$B$27='Darbu Sarasas'!$F$37,Paraiska!$B$27='Darbu Sarasas'!$F$38,Paraiska!$B$27='Darbu Sarasas'!$F$39,Paraiska!$B$27='Darbu Sarasas'!$F$54,Paraiska!$B$27='Darbu Sarasas'!$F$55),"TAIP","NE") -> NE
A3: Š.v. tiekimo ir kanalizavimo sistemų remontas | B3: 501087 | C3: Kanalizacijos ir nuotekos tinklų vamzdynų remontas | D3: Taikomas APVM | E3: TAIP | F3: Apsaugos sistemų (pultinės ir vaizdo stebėjimo kamerų) įrengimas ir montavimas | G3: Apsaugos sistemos | H3: Taikomas APVM | I3: TAIP | K3: =IF(I3="TAIP",0,IF(I3="NE",1,"")) -> 0 | M3: Ar pasirinktas garantijos (draudimo) taikymas? | N3: =IF(OR(Paraiska!$B$52=Support!$N$31,Paraiska!$B$52=Support!$N$32),"TAIP","NE") -> TAIP
A4: Dujas deginančių įr. papild. | B4: 5010898 | C4: Dujotiekio sistemos vamzdynų ir įrangos remontas | D4: Taikomas APVM | E4: TAIP | F4: Balkonų, terasų grindų ir konstrukcijų remontas | G4: Išorės sienos (fasadai) | H4: Taikomas APVM | I4: TAIP | K4: 0 | M4: Ar pasirinktos tinkamos darbų garantijos sąlygos, pagal pasirinktą darbo tipą? | N4: =IF(OR(AND($N$2="TAIP",$N$3="TAIP"),AND($N$2="NE",$N$3="NE")),"NE","TAIP") -> TAIP
A5: Elektros instaliacijos remontas | B5: 501089 | C5: Elektros skydinės renovacija, atnaujinimas | D5: Taikomas APVM | E5: TAIP | F5: Dujotiekio sistemos vamzdynų ir įrangos remontas | G5: Dujotiekis (katilinės) | H5: Taikomas APVM | I5: TAIP | K5: 0
A6: Elektros instaliacijos remontas | B6: 501089 | C6: Laiptinės apšvietimo atnaujinimas (šviestuvai su davikliais) | D6: Taikomas APVM | E6: TAIP | F6: Elektros skydinės renovacija, atnaujinimas | G6: Elektra | H6: Taikomas APVM | I6: TAIP | K6: 0
A7: Elektros instaliacijos remontas | B7: 501089 | C7: Laiptinės apskaitos skydelių atnaujinimas, remontas | D7: Taikomas APVM | E7: TAIP | F7: Fasado mūro sienų atstatymas | G7: Išorės sienos (fasadai) | H7: Taikomas APVM | I7: TAIP | K7: 0
A8: Elektros instaliacijos remontas | B8: 501089 | C8: Magistralinių elektros instaliacijos laidų keitimas | D8: Taikomas APVM | E8: TAIP | F8: Gaisrinių žarnų ir čiaupų patikra, perkantavimas ir bandymas | G8: Priešgaisrinis vandentiekis | H8: Taikomas APVM | I8: TAIP | K8: 0
A9: Elektros instaliacijos remontas | B9: 501089 | C9: Rūsio elektros instaliacijos, apšvietimo atnaujinimas, remontas | D9: Taikomas APVM | E9: TAIP | F9: Įėjimo į laiptinę stogelio remontas | G9: Įėjimo aikštelės, stogeliai | H9: Taikomas APVM | I9: TAIP | K9: 0
A10: Elektros instaliacijos remontas | B10: 501089 | C10: Telefonspynės įrengimas | D10: Taikomas APVM | E10: TAIP | F10: Laiptinių/rūsio įėjimo durų keitimas | G10: Langai ir durys | H10: Taikomas APVM | I10: TAIP | K10: 0
A11: Elektros instaliacijos remontas | B11: 501089 | C11: Kelio užtvaro, vartų automatikos remontas, įrengimas | D11: Taikomas APVM | E11: TAIP | F11: Pastatų išorės sienų, stogų, balkonų, inžinierinių sistemų renovacija ir atnaujinimas | G11: Pastatų renovacijos darbai | H11: Taikomas APVM | I11: TAIP | K11: 0
A12: Staliaus ir bendrastatybiniai | B12: 501088 | C12: Laiptinės įėjimo aikštelės, laiptų remontas | D12: Taikomas APVM | E12: TAIP | F12: Pastatų išorės sienų siūlių hermetizavimas | G12: Išorės sienos (fasadai) | H12: Taikomas APVM | I12: TAIP | K12: 0
A13: Staliaus ir bendrastatybiniai | B13: 501088 | C13: Įėjimo į laiptinę stogelio remontas | D13: Taikomas APVM | E13: TAIP | F13: Išorės sienų (fasado) apdailos remonto darbai | G13: Išorės sienos (fasadai) | H13: Taikomas APVM | I13: TAIP | K13: 0
A14: Staliaus ir bendrastatybiniai | B14: 501088 | C14: Projektavimo darbai (išorės sienos (fasadai), balkonai, perdangos) | D14: Netaikomas APVM | E14: NE | F14: Išorės sienų (fasado) šiltinimo darbai | G14: Išorės sienos (fasadai) | H14: Taikomas APVM | I14: TAIP | K14: 0
A15: Staliaus ir bendrastatybiniai | B15: 501088 | C15: Pastato konstrukcijų būklės vertinimas | D15: Netaikomas APVM | E15: NE | F15: Kaminų, vėdinimo šachtų remontas | G15: Kaminai, vėdinimo šachtos | H15: Taikomas APVM | I15: TAIP | K15: 0
A16: Staliaus ir bendrastatybiniai | B16: 501088 | C16: Išorės sienų (fasado) apdailos remonto darbai | D16: Taikomas APVM | E16: TAIP | F16: Kanalizacijos ir nuotekos tinklų vamzdynų remontas | G16: Buitinės ir lietaus nuotekos | H16: Taikomas APVM | I16: TAIP | K16: 0
A17: Staliaus ir bendrastatybiniai | B17: 501088 | C17: Išorės sienų (fasado) šiltinimo darbai | D17: Taikomas APVM | E17: TAIP | F17: Karšto vandens, cirkuliacinio ir šildymo magistralinių vamzdžių keitimo darbai | G17: Šildymo ir karšto vandens sistemos | H17: Taikomas APVM | I17: TAIP | K17: 0
A18: Staliaus ir bendrastatybiniai | B18: 501088 | C18: Fasado mūro sienų atstatymas | D18: Taikomas APVM | E18: TAIP | F18: Kelio užtvaro montavimas (bendrastatybinė dalys) | G18: Teritorija | H18: Taikomas APVM | I18: TAIP | K18: 0
A19: Staliaus ir bendrastatybiniai | B19: 501088 | C19: Balkonų, terasų grindų ir konstrukcijų remontas | D19: Taikomas APVM | E19: TAIP | F19: Kelio užtvaro, vartų automatikos remontas, įrengimas | G19: Elektra | H19: Taikomas APVM | I19: TAIP | K19: 0
A20: Siūlių remontas | B20: 501083 | C20: Pastatų išorės sienų siūlių hermetizavimas | D20: Taikomas APVM | E20: TAIP | F20: Kondicionavimo sistemų papildymas šaldymo skysčiu | G20: Vėdinimo ir oro kondicionavimo sistemos | H20: Netaikomas APVM | I20: NE | K20: 1
A21: Siūlių remontas | B21: 501083 | C21: Tarpblokinių siūlių hermetizavimas | D21: Taikomas APVM | E21: TAIP | F21: Kondicionierių montavimas | G21: Vėdinimo ir oro kondicionavimo sistemos | H21: Taikomas APVM | I21: TAIP | K21: 0
A22: Stogo remontas | B22: 501081 | C22: Kaminų, vėdinimo šachtų remontas | D22: Taikomas APVM | E22: TAIP | F22: Laipinės apdaila dekoratyviniu tinku | G22: Pastatų vidaus paviršiai | H22: Taikomas APVM | I22: TAIP | K22: 0
A23: Langų/durų keitimas | B23: 501084 | C23: Laiptinių/rūsio įėjimo durų keitimas | D23: Taikomas APVM | E23: TAIP | F23: Laiptinės apskaitos skydelių atnaujinimas, remontas | G23: Elektra | H23: Taikomas APVM | I23: TAIP | K23: 0
A24: Langų/durų keitimas | B24: 501084 | C24: Laiptinės langų keitimas | D24: Taikomas APVM | E24: TAIP | F24: Laiptinės apšvietimo atnaujinimas (šviestuvai su davikliais) | G24: Elektra | H24: Taikomas APVM | I24: TAIP | K24: 0
A25: Langų/durų keitimas | B25: 501084 | C25: Plieninių laiptinės durų su telefonspyne montavimas | D25: Taikomas APVM | E25: TAIP | F25: Laiptinės įėjimo aikštelės, laiptų remontas | G25: Įėjimo aikštelės, stogeliai | H25: Taikomas APVM | I25: TAIP | K25: 0
A26: Liftų remontas | B26: 5010801 | C26: Liftų įrangos ir prietaisų keitimas, remontas | D26: Netaikomas APVM | E26: TAIP | F26: Laiptinės langų keitimas | G26: Langai ir durys | H26: Taikomas APVM | I26: TAIP | K26: 0
A27: Liftų remontas | B27: 5010801 | C27: Liftų montavimas, modernizavimas (nauji liftai) | D27: Taikomas APVM | E27: TAIP | F27: Lietaus nuvedimo sistemos keitimas (latakai, lietvamzdžiai) | G27: Stogai | H27: Taikomas APVM | I27: TAIP | K27: 0
A28: Staliaus ir bendrastatybiniai | B28: 501088 | C28: Pastatų nuogrindos įrengimas, remontas | D28: Taikomas APVM | E28: TAIP | F28: Liftų įrangos ir prietaisų keitimas, remontas | G28: Liftai | H28: Netaikomas APVM | I28: TAIP | K28: 0
A29: Pastatų renovacija | B29: 5010893 | C29: Pastatų išorės sienų, stogų, balkonų, inžinierinių sistemų renovacija ir atnaujinimas | D29: Taikomas APVM | E29: TAIP | F29: Liftų montavimas, modernizavimas (nauji liftai) | G29: Liftai | H29: Taikomas APVM | I29: TAIP | K29: 0
A30: Laiptinių priežiūra ir remontas | B30: 501085 | C30: Pastatų vidaus paviršių apdailos remontas (dažymas, tinkavimas) | D30: Taikomas APVM | E30: TAIP | F30: Magistralinių elektros instaliacijos laidų keitimas | G30: Elektra | H30: Taikomas APVM | I30: TAIP | K30: 0
A31: Laiptinių priežiūra ir remontas | B31: 501085 | C31: Laipinės apdaila dekoratyviniu tinku | D31: Taikomas APVM | E31: TAIP | F31: Pastato konstrukcijų būklės vertinimas | G31: Išorės sienos (fasadai) | H31: Netaikomas APVM | I31: NE | K31: 1
A32: Priešgaisrinių sistemų papild. | B32: 5010897 | C32: Priešgaisrinio vandentiekio sistemos vamzdyno ir čiaupų remontas | D32: Taikomas APVM | E32: TAIP | F32: Pastatų nuogrindos įrengimas, remontas | G32: Nuogrinda | H32: Taikomas APVM | I32: TAIP | K32: 0
A33: Priešgaisrinių sistemų papild. | B33: 5010897 | C33: Gaisrinių žarnų ir čiaupų patikra, perkantavimas ir bandymas | D33: Taikomas APVM | E33: TAIP | F33: Pastatų vidaus paviršių apdailos remontas (dažymas, tinkavimas) | G33: Pastatų vidaus paviršiai | H33: Taikomas APVM | I33: TAIP | K33: 0
A34: Š.v. tiekimo ir kanalizavimo sistemų remontas | B34: 501087 | C34: Projektavimo darbai (šalto vandens, buitinių ir lietaus nuotekų sistemos) | D34: Netaikomas APVM | E34: NE | F34: Plieninių laiptinės durų su telefonspyne montavimas | G34: Langai ir durys | H34: Taikomas APVM | I34: TAIP | K34: 0
A35: Š.v. tiekimo ir kanalizavimo sistemų remontas | B35: 501087 | C35: Šalto vandens ir nuotekų tinklų vamzdynų remontas | D35: Taikomas APVM | E35: TAIP | F35: Priešgaisrinio vandentiekio sistemos vamzdyno ir čiaupų remontas | G35: Priešgaisrinis vandentiekis | H35: Taikomas APVM | I35: TAIP | K35: 0
A36: Š.v. tiekimo ir kanalizavimo sistemų remontas | B36: 501087 | C36: Šalto vandens sistemos vamzdynų keitimas (magistralinių, stovų, skirstomojo) | D36: Taikomas APVM | E36: TAIP | F36: Projektavimo darbai (išorės sienos (fasadai), balkonai, perdangos) | G36: Išorės sienos (fasadai) | H36: Netaikomas APVM | I36: NE | K36: 1
A37: Š.v. tiekimo ir kanalizavimo sistemų remontas | B37: 501087 | C37: Vandens valymo įrangos įrengimas su filtrais | D37: Taikomas APVM | E37: TAIP | F37: Projektavimo darbai (šalto vandens, buitinių ir lietaus nuotekų sistemos) | G37: Šalto vandens ir nuotekų tinklai | H37: Netaikomas APVM | I37: NE | K37: 1
A38: Pultinė apsauga | B38: 5010896 | C38: Apsauginės, gaisrinės signalizacijos ir silpnų srovių sistemų instaliacijos, centralės keitimas, remontas | D38: Taikomas APVM | E38: TAIP | F38: Projektavimo darbai (šildymo ir karšto vandens sistemos, šilumos punktai) | G38: Šildymo ir karšto vandens sistemos | H38: Netaikomas APVM | I38: NE | K38: 1
A39: Šildymo ir kv. sistemos remontas | B39: 501086 | C39: Projektavimo darbai (šildymo ir karšto vandens sistemos, šilumos punktai) | D39: Netaikomas APVM | E39: NE | F39: Projektavimo darbai (stogai) | G39: Stogai | H39: Netaikomas APVM | I39: NE | K39: 1
A40: Šildymo ir kv. sistemos remontas | B40: 501086 | C40: Šildymo ir karšto vandens sistemų stovų vamzdynų keitimas | D40: Taikomas APVM | E40: TAIP | F40: Prilydomos stogo dangos keitimas, apšiltinimas | G40: Stogai | H40: Taikomas APVM | I40: TAIP | K40: 0
A41: Šildymo ir kv. sistemos remontas | B41: 501086 | C41: Karšto vandens, cirkuliacinio ir šildymo magistralinių vamzdžių keitimo darbai | D41: Taikomas APVM | E41: TAIP | F41: Rūsio elektros instaliacijos, apšvietimo atnaujinimas, remontas | G41: Elektra | H41: Taikomas APVM | I41: TAIP | K41: 0
A42: Šildymo ir kv. sistemos remontas | B42: 501086 | C42: Slėgio perkričio reguliatoriaus ir privirinamos sklendės keitimo darbai | D42: Taikomas APVM | E42: TAIP | F42: Šalto vandens ir nuotekų tinklų vamzdynų remontas | G42: Šalto vandens ir nuotekų tinklai | H42: Taikomas APVM | I42: TAIP | K42: 0
A43: Šildymo ir kv. sistemos remontas | B43: 501086 | C43: Šildymo sistemos skirstomojo vamzdyno remontas | D43: Taikomas APVM | E43: TAIP | F43: Šalto vandens sistemos vamzdynų keitimas (magistralinių, stovų, skirstomojo) | G43: Šalto vandens sistemos | H43: Taikomas APVM | I43: TAIP | K43: 0
A44: Šildymo ir kv. sistemos remontas | B44: 501086 | C44: Šilumos punkto įrangos keitimas, remontas (valdiklių, dvieigių vožtuvų, pavarų, siurblių, šilumokaičių) | D44: Taikomas APVM | E44: TAIP | F44: Šildymo ir karšto vandens sistemų stovų vamzdynų keitimas | G44: Šildymo ir karšto vandens sistemos | H44: Taikomas APVM | I44: TAIP | K44: 0
A45: Stogo remontas | B45: 501081 | C45: Projektavimo darbai (stogai) | D45: Netaikomas APVM | E45: NE | F45: Šildymo sistemos skirstomojo vamzdyno remontas | G45: Šildymo ir karšto vandens sistemos | H45: Taikomas APVM | I45: TAIP | K45: 0
A46: Stogo remontas | B46: 501081 | C46: Prilydomos stogo dangos keitimas, apšiltinimas | D46: Taikomas APVM | E46: TAIP | F46: Šilumos punkto įrangos keitimas, remontas (valdiklių, dvieigių vožtuvų, pavarų, siurblių, šilumokaičių) | G46: Šildymo ir karšto vandens sistemos | H46: Taikomas APVM | I46: TAIP | K46: 0
A47: Stogo remontas | B47: 501081 | C47: Stogo dangos ir konstrukcijų kapitalinis remontas | D47: Taikomas APVM | E47: TAIP | F47: Šlaitinio stogo dangos keitimas (čerpių, šiferio, plieno) | G47: Stogai | H47: Taikomas APVM | I47: TAIP | K47: 0
A48: Stogo remontas | B48: 501081 | C48: Šlaitinio stogo dangos keitimas (čerpių, šiferio, plieno) | D48: Taikomas APVM | E48: TAIP | F48: Slėgio perkričio reguliatoriaus ir privirinamos sklendės keitimo darbai | G48: Šildymo ir karšto vandens sistemos | H48: Taikomas APVM | I48: TAIP | K48: 0
A49: Stogo remontas | B49: 501081 | C49: Lietaus nuvedimo sistemos keitimas (latakai, lietvamzdžiai) | D49: Taikomas APVM | E49: TAIP | F49: Stogo dangos ir konstrukcijų kapitalinis remontas | G49: Stogai | H49: Taikomas APVM | I49: TAIP | K49: 0
A50: Staliaus ir bendrastatybiniai | B50: 501088 | C50: Kelio užtvaro montavimas (bendrastatybinė dalys) | D50: Taikomas APVM | E50: TAIP | F50: Tarpblokinių siūlių hermetizavimas | G50: Išorės sienos (fasadai) | H50: Taikomas APVM | I50: TAIP | K50: 0
A51: Vėdinimo ir oro kondicionavimo | B51: 5010891 | C51: Kondicionavimo sistemų papildymas šaldymo skysčiu | D51: Netaikomas APVM | E51: NE | F51: Telefonspynės įrengimas | G51: Elektra | H51: Taikomas APVM | I51: TAIP | K51: 0
A52: Vėdinimo ir oro kondicionavimo | B52: 5010891 | C52: Vėdinimo ir oro kondicionavimo sistemų remontas | D52: Taikomas APVM | E52: TAIP | F52: Vandens valymo įrangos įrengimas su filtrais | G52: Šalto vandens sistemos | H52: Taikomas APVM | I52: TAIP | K52: 0
A53: Vėdinimo ir oro kondicionavimo | B53: 5010891 | C53: Kondicionierių montavimas | D53: Taikomas APVM | E53: TAIP | F53: Vėdinimo ir oro kondicionavimo sistemų remontas | G53: Vėdinimo ir oro kondicionavimo sistemos | H53: Taikomas APVM | I53: TAIP | K53: 0
C54: Projektavimo darbai ( elektros tinklai ir įrenginiai) | D54: Netaikomas APVM | E54: NE | F54: Projektavimo darbai ( elektros tinklai ir įrenginiai) | G54: Elektra | H54: Netaikomas APVM | I54: NE | K54: 1
C55: Statinių konstrukcijų techninė apžiūra, tyrimai, periodinis patikrinimas, ekspertizės | D55: Netaikomas APVM | E55: NE | F55: Statinių konstrukcijų techninė apžiūra, tyrimai, periodinis patikrinimas, ekspertizės | G55: Teritorija | H55: Netaikomas APVM | I55: NE | K55: 1
